﻿Merchandising Type Category,Detailed Merchant Category,Supplier,Purchase Details,Transaction Date,Value,Department
Type of Retail Store,Grocery Stores/Supermarkets,Tesco Stores 6002,Supplies and Services related expenditure,01/07/2021,23.94,Director of Children's Services and Education
Type of Retail Store,Grocery Stores/Supermarkets,Tesco Stores 6002,Supplies and Services related expenditure,01/07/2021,118.07,Director of Children's Services and Education
Type of Retail Store,Grocery Stores/Supermarkets,Sainsburys S/mkt,Supplies and Services related expenditure,01/07/2021,2.5,Director of Children's Services and Education
Type of Retail Store,Grocery Stores/Supermarkets,Tesco Stores 4611,Supplies and Services related expenditure,01/07/2021,2.5,Director of Children's Services and Education
Business To Business Eqpt/Furn,Stationery/Office Supplies,Www.Banneruk.Com,Supplies and Services related expenditure,01/07/2021,21.93,Director of Finance & Resources
Type of Retail Store,Grocery Stores/Supermarkets,Tesco Stores 6012,Supplies and Services related expenditure,01/07/2021,3,Director of Children's Services and Education
Transportation Conveyor,Passenger Railways,Swrailwayselfserve,Transport related expenditure,01/07/2021,17.5,Director of Children's Services and Education
Type of Retail Store,Grocery Stores/Supermarkets,Tesco Stores 6679,Supplies and Services related expenditure,01/07/2021,2.75,Director of Children's Services and Education
Type of Retail Store,Grocery Stores/Supermarkets,Asda Stores,Supplies and Services related expenditure,01/07/2021,12.37,Director of Children's Services and Education
Clothing/Uniform Services,Laundry/Cleaning/Garment Sv,Southsea Cleaning Co,Supplies and Services related expenditure,01/07/2021,315.83,Director of Children's Services and Education
Business Expenses/Services,Postage Stamps,Post Office Counter,Supplies and Services related expenditure,01/07/2021,1.53,Director of Children's Services and Education
Other Supplies,Misc Speciality Retail,Amznmktplace,Supplies and Services related expenditure,01/07/2021,9.54,Director of Children's Services and Education
Other Supplies,Misc Speciality Retail,Amznmktplace,Supplies and Services related expenditure,01/07/2021,41.65,Director of Children's Services and Education
Transportation Conveyor,Taxicabs/Limousines,Iz *joseph Augustine,Supplies and Services related expenditure,01/07/2021,14,Director of Corporate Services
Other Supplies,Misc Gen Merchandise - Def,B&m Retail Ltd,Premises related expenditure,01/07/2021,6.32,Director of Children's Services and Education
Facilities/Repair Services,Gen Contractors Residentl/Coml,Crown Decorating Centr,Premises related expenditure,01/07/2021,51.3,Director of Children's Services and Education
Other Supplies,Misc Speciality Retail,Www.Rainbowsafetey.Co.Uk,Agency and Third Party Payments related expenditure,01/07/2021,186.69,Director of Children's Services and Education
Equipment And Furniture,Equip/Furn Rent/Lease Serv,L&s Waste Management,Premises related expenditure,01/07/2021,197,Director of Children's Services and Education
Business To Business Eqpt/Furn,Book Stores,Eden Co Uk,Supplies and Services related expenditure,01/07/2021,254.38,Director of Children's Services and Education
Miscellaneous,Other Direct Marketers,Findel Education,Supplies and Services related expenditure,01/07/2021,14.71,Director of Children's Services and Education
Type of Retail Store,Grocery Stores/Supermarkets,Tesco Stores 4579,Supplies and Services related expenditure,01/07/2021,15,Director of Children's Services and Education
Facilities/Repair Supplies,Home Supply Warehouse Stores,B & Q 1238,Supplies and Services related expenditure,01/07/2021,9.07,"Director of Housing, Neighbourhood and Building Services"
Business Services,Advertising Services,Google Ads5247259773,Supplies and Services related expenditure,01/07/2021,500,Director of Children's Services and Education
Transportation Conveyor,Passenger Railways,Trainline.Com,Transport related expenditure,01/07/2021,4.58,Director of Children's Services and Education
Utility,Phone Serv/Equip Utility,Mobiletopup.Co.Uk 9779751,Supplies and Services related expenditure,01/07/2021,21.49,Director of Children's Services and Education
Miscellaneous,Charitable/Soc Service Orgs,Geographical Assoc,Supplies and Services related expenditure,01/07/2021,53,Director of Children's Services and Education
Business To Business Eqpt/Furn,Computer Software Stores,Pcwb Telesales,Supplies and Services related expenditure,01/07/2021,2890.5,Director of Children's Services and Education
Transportation Conveyor,Passenger Railways,Swrailway Tck Off,Transport related expenditure,01/07/2021,5.5,Director of Children's Services and Education
Transportation Conveyor,Passenger Railways,Swrailway Tck Off,Transport related expenditure,01/07/2021,5.5,Director of Children's Services and Education
Transportation Conveyor,Passenger Railways,Swrailway Tck Off,Transport related expenditure,01/07/2021,-5.5,Director of Children's Services and Education
Transportation Conveyor,Passenger Railways,Swrailway Tck Off,Transport related expenditure,01/07/2021,16.5,Director of Children's Services and Education
Transportation Conveyor,Passenger Railways,Swrailway Tck Off,Transport related expenditure,01/07/2021,83.75,Director of Children's Services and Education
Type of Retail Store,Grocery Stores/Supermarkets,Asda Groceries Online,Supplies and Services related expenditure,01/07/2021,66.62,Director of Children's Services and Education
Type of Retail Store,Grocery Stores/Supermarkets,Asda Groceries Online,Supplies and Services related expenditure,01/07/2021,1.67,Director of Children's Services and Education
Other Supplies,Misc Speciality Retail,Amznmktplace,Supplies and Services related expenditure,01/07/2021,38.56,"Director of Housing, Neighbourhood and Building Services"
Business To Business Eqpt/Furn,Stationery/Office Supplies,Www.Banneruk.Com,Supplies and Services related expenditure,01/07/2021,4.7,Director of Regeneration
Business To Business Eqpt/Furn,Stationery/Office Supplies,Www.Banneruk.Com,Supplies and Services related expenditure,01/07/2021,8.73,Director of Regeneration
Government Service,Govt Serv - Default,Dvla Driver Online,Supplies and Services related expenditure,01/07/2021,28.33,Director of Children's Services and Education
Business To Business Eqpt/Furn,Stationery/Office Supplies,Www.Banneruk.Com,Supplies and Services related expenditure,01/07/2021,12.5,"Director of Culture, Leisure & Regulatory Services"
Facilities/Repair Supplies,Lumber/Build. Supply Stores,Selco Trading Ctr,Supplies and Services related expenditure,01/07/2021,114.27,"Director of Housing, Neighbourhood and Building Services"
Utility,Utilities/Elec/Gas/H2O/Sani,Express Gas Centre,Supplies and Services related expenditure,01/07/2021,23.81,Director of Adult Services
Medical,Lab/Med/Hospital Equipment,Wightman & Parrish,Premises related expenditure,01/07/2021,43.48,"Director of Housing, Neighbourhood and Building Services"
Medical,Lab/Med/Hospital Equipment,Wightman & Parrish,Premises related expenditure,01/07/2021,682.13,"Director of Housing, Neighbourhood and Building Services"
Other Supplies,Department Stores,Southern Co-Op 0009,Supplies and Services related expenditure,01/07/2021,13.29,Director of Children's Services and Education
Facilities/Repair Supplies,Home Supply Warehouse Stores,B&q Direct,Premises related expenditure,01/07/2021,116.67,Director of Children's Services and Education
Amusement/Entertainment,Member Clubs/Sport/Rec/Golf,Roko Portsmouth Limite,Supplies and Services related expenditure,01/07/2021,20,Director of Children's Services and Education
Business To Business Facility/,Industrial Supplies - Def,Arco Limited (Ahpp),Supplies and Services related expenditure,01/07/2021,17.28,Director of Portsmouth International Port
Business To Business Eqpt/Furn,Stationery/Office Supplies,Www.Banneruk.Com,Supplies and Services related expenditure,01/07/2021,65.4,Director of Portsmouth International Port
Business To Business Eqpt/Furn,Book Stores,Blackwells,Employees related expenditure,01/07/2021,13.22,"Director of Housing, Neighbourhood and Building Services"
Type of Retail Store,Grocery Stores/Supermarkets,Tesco Gift Card,Supplies and Services related expenditure,01/07/2021,50,Director of Children's Services and Education
Transportation Conveyor,Bus Lines/Charter/Tour,The Provincial Bus,Supplies and Services related expenditure,01/07/2021,115,Director of Children's Services and Education
Personal Service Provider,Detective/Protective Agen,Security Industry,Supplies and Services related expenditure,01/07/2021,190,"Director of Housing, Neighbourhood and Building Services"
Type of Retail Store,Grocery Stores/Supermarkets,Asda Stores Ltd,Supplies and Services related expenditure,01/07/2021,50,Director of Children's Services and Education
Business Expenses/Services,Postage Stamps,Royal Mail Charges,Supplies and Services related expenditure,01/07/2021,1.5,Director of Adult Services
Type of Retail Store,Grocery Stores/Supermarkets,Lidl Gb Portsmouth,Premises related expenditure,01/07/2021,7.84,Director of Adult Services
Type of Retail Store,Grocery Stores/Supermarkets,Lidl Gb Portsmouth,Supplies and Services related expenditure,01/07/2021,0.65,Director of Adult Services
Business Expenses/Services,Postage Stamps,Post Office Counter,Supplies and Services related expenditure,01/07/2021,6.85,"Director of Housing, Neighbourhood and Building Services"
Other Supplies,Misc Speciality Retail,Amznmktplace,Supplies and Services related expenditure,01/07/2021,1.55,Director of Children's Services and Education
Other Supplies,Misc Speciality Retail,Amznmktplace,Supplies and Services related expenditure,01/07/2021,2.75,Director of Children's Services and Education
Type of Retail Store,Grocery Stores/Supermarkets,Tesco Stores 6002,Supplies and Services related expenditure,01/07/2021,4.17,Director of Adult Services
Type of Retail Store,Grocery Stores/Supermarkets,Tesco Stores 6002,Supplies and Services related expenditure,01/07/2021,27.1,Director of Adult Services
Miscellaneous,Member Organizations - Def,South East Employers,Employees related expenditure,01/07/2021,50,Director of Corporate Services
Business To Business Services,Misc Publishing & Printing,Www.Solopress.Com,Supplies and Services related expenditure,01/07/2021,362.57,Director of Children's Services and Education
Equipment And Furniture,Equip/Furn Rent/Lease Serv,Rowlands Plant Services L,Supplies and Services related expenditure,01/07/2021,202.23,"Director of Culture, Leisure & Regulatory Services"
Transportation Conveyor,"Parking Lots, Meters, Garages",Paybyphone,Transport related expenditure,01/07/2021,1.2,Director of Children's Services and Education
Transportation Conveyor,"Parking Lots, Meters, Garages",Paybyphone,Transport related expenditure,01/07/2021,2.88,Director of Children's Services and Education
Type of Retail Store,Misc Food Stores - Default,M&s Simply Food,Transport related expenditure,01/07/2021,4.17,Director of Children's Services and Education
Clothing Services,Family Clothing Stores,Www.Bandana-Bibs.Co.Uk,Supplies and Services related expenditure,01/07/2021,59.25,Director of Adult Services
Clothing Services,Family Clothing Stores,Www.Bandana-Bibs.Co.Uk,Supplies and Services related expenditure,01/07/2021,3.9,Director of Adult Services
Government Service,Schools - Default,Arbor Education,Supplies and Services related expenditure,01/07/2021,400,Director of Children's Services and Education
Transportation Conveyor,"Parking Lots, Meters, Garages",3c_*portsmouth City Coun,Supplies and Services related expenditure,01/07/2021,1.5,Director of Regeneration
Facilities/Repair Supplies,Lumber/Build. Supply Stores,Screwfix Direct,Supplies and Services related expenditure,01/07/2021,291.66,Director of Regeneration
Other Supplies,Misc Speciality Retail,Certsure Llp,Agency and Third Party Payments related expenditure,01/07/2021,48,Director of Regeneration
Clothing Services,Mens/Womens Clothing Stores,Boohoo.Com,Supplies and Services related expenditure,01/07/2021,40.49,Director of Regeneration
Transportation Conveyor,Passenger Railways,Sw Railway App,Transport related expenditure,01/07/2021,102.8,Director of Regeneration
Facilities/Repair Supplies,Bicycle Shops/Sales/Service,Portsmouth Cycle Excha,Supplies and Services related expenditure,01/07/2021,165,Director of Regeneration
Miscellaneous,Member Organizations - Def,South East Employers,Supplies and Services related expenditure,01/07/2021,50,Director of Corporate Services
Facilities/Repair Supplies,Lumber/Build. Supply Stores,Screwfix Direct,Premises related expenditure,01/07/2021,295.71,"Director of Culture, Leisure & Regulatory Services"
Medical,Lab/Med/Hospital Equipment,Wightman & Parrish,Premises related expenditure,01/07/2021,81.08,"Director of Housing, Neighbourhood and Building Services"
Medical,Lab/Med/Hospital Equipment,Wightman & Parrish,Premises related expenditure,01/07/2021,203.81,"Director of Housing, Neighbourhood and Building Services"
Facilities/Repair Supplies,Lumber/Build. Supply Stores,Screwfix Direct,Premises related expenditure,01/07/2021,39.5,Director of Children's Services and Education
Type of Retail Store,Record Shops,Amazon Music,Supplies and Services related expenditure,01/07/2021,12.49,Director of Adult Services
Business To Business Eqpt/Furn,Stationery/Office Supplies,Www.Banneruk.Com,Supplies and Services related expenditure,01/07/2021,86.36,"Director of Culture, Leisure & Regulatory Services"
Type of Retail Store,Electronics Sales,Currys Online,Supplies and Services related expenditure,01/07/2021,204.16,"Director of Culture, Leisure & Regulatory Services"
Business To Business Eqpt/Furn,Stationery/Office Supplies,Www.Banneruk.Com,Supplies and Services related expenditure,01/07/2021,478.09,"Director of Culture, Leisure & Regulatory Services"
Type of Retail Store,Grocery Stores/Supermarkets,One Stop 1339,Supplies and Services related expenditure,01/07/2021,2,Director of Children's Services and Education
Business To Business Facility/,Industrial Supplies - Def,Arco Limited (Sap),Supplies and Services related expenditure,01/07/2021,13.22,"Director of Housing, Neighbourhood and Building Services"
Facilities/Repair Supplies,Home Supply Warehouse Stores,B & Q 1260,Supplies and Services related expenditure,01/07/2021,13.52,"Director of Housing, Neighbourhood and Building Services"
Facilities/Repair Supplies,Lawn/Garden Supply/Nursery,M & S Enterprises,Supplies and Services related expenditure,01/07/2021,84.13,"Director of Housing, Neighbourhood and Building Services"
Other Supplies,Department Stores,The Range,Supplies and Services related expenditure,01/07/2021,5.38,Director of Children's Services and Education
Type of Retail Store,Sporting Goods Stores,J D Sports Fashion Plc,Supplies and Services related expenditure,01/07/2021,50,Director of Children's Services and Education
Facilities/Repair Supplies,Lumber/Build. Supply Stores,C.E.F. (Portsmouth),Supplies and Services related expenditure,01/07/2021,22.18,"Director of Housing, Neighbourhood and Building Services"
Facilities/Repair Supplies,Misc Home Furnishing,The Moving Home Wareho,Supplies and Services related expenditure,01/07/2021,22.48,Director of Children's Services and Education
Miscellaneous,Charitable/Soc Service Orgs,Award Scheme Ltd,Supplies and Services related expenditure,01/07/2021,19.17,"Director of Housing, Neighbourhood and Building Services"
Eating And Drinking Places,Fast Food Restaurants,McDonalds,Agency and Third Party Payments related expenditure,01/07/2021,3.58,Director of Children's Services and Education
Eating And Drinking Places,Fast Food Restaurants,McDonalds,Agency and Third Party Payments related expenditure,01/07/2021,1.78,Director of Children's Services and Education
Type of Retail Store,Candy/Nut/Confection Store,The Rock Shop Gift Sho,Supplies and Services related expenditure,01/07/2021,12,Director of Children's Services and Education
Type of Retail Store,Misc Food Stores - Default,M&s Simply Food,Supplies and Services related expenditure,01/07/2021,6.43,Director of Children's Services and Education
Facilities/Repair Supplies,Lumber/Build. Supply Stores,Screwfix Direct,Supplies and Services related expenditure,01/07/2021,399.98,"Director of Culture, Leisure & Regulatory Services"
Business Services,Business Services - Default,Francis Sheet Sales,Premises related expenditure,01/07/2021,50,Director of Adult Services
Type of Retail Store,Drug Stores & Pharmacies,Rowlands Pharmacy,Supplies and Services related expenditure,01/07/2021,5.18,Director of Children's Services and Education
Other Supplies,Misc Speciality Retail,Timpson Ltd,Supplies and Services related expenditure,01/07/2021,20,Director of Children's Services and Education
Type of Retail Store,Grocery Stores/Supermarkets,Tesco Stores 5153,Supplies and Services related expenditure,01/07/2021,20.05,Director of Children's Services and Education
Type of Retail Store,Grocery Stores/Supermarkets,Tesco Stores 4579,Supplies and Services related expenditure,01/07/2021,9.17,Director of Children's Services and Education
Type of Retail Store,Grocery Stores/Supermarkets,Tesco Stores 4579,Supplies and Services related expenditure,01/07/2021,11.88,Director of Children's Services and Education
Type of Retail Store,Grocery Stores/Supermarkets,Tesco Stores 4579,Supplies and Services related expenditure,01/07/2021,101.75,Director of Children's Services and Education
Type of Retail Store,Grocery Stores/Supermarkets,Tesco Stores 4579,Supplies and Services related expenditure,01/07/2021,8.33,Director of Children's Services and Education
Type of Retail Store,Grocery Stores/Supermarkets,Tesco Stores 4579,Premises related expenditure,01/07/2021,9.17,Director of Children's Services and Education
Type of Retail Store,Grocery Stores/Supermarkets,Tesco Stores 4579,Supplies and Services related expenditure,01/07/2021,109.65,Director of Children's Services and Education
Business To Business Other Sup,Drugs/Druggists Sundries,Lalys Pharmacy,Supplies and Services related expenditure,01/07/2021,4.14,"Director of Culture, Leisure & Regulatory Services"
Eating And Drinking Places,Eating Places/Restaurants,Abarbistro Camber Wines,Supplies and Services related expenditure,01/07/2021,39.58,"Director of Culture, Leisure & Regulatory Services"
Business To Business Services,Misc Publishing & Printing,Buffer Publish Pro Mo,Supplies and Services related expenditure,01/07/2021,11.24,Solent LEP
Type of Retail Store,Grocery Stores/Supermarkets,Sainsburys S/mkts,Supplies and Services related expenditure,01/07/2021,1.9,Director of Children's Services and Education
Type of Retail Store,Grocery Stores/Supermarkets,Tesco Store 3186,Supplies and Services related expenditure,01/07/2021,1.08,Director of Children's Services and Education
Type of Retail Store,Grocery Stores/Supermarkets,Tesco Store 3186,Supplies and Services related expenditure,01/07/2021,1.45,Director of Children's Services and Education
Business Expenses/Services,Postage Stamps,Post Office Counter,Supplies and Services related expenditure,01/07/2021,31.68,Director of Adult Services
Eating And Drinking Places,Eating Places/Restaurants,Be-Be S Cafe,Supplies and Services related expenditure,01/07/2021,7.6,Director of Children's Services and Education
Other Supplies,Department Stores,Southern Co-Op 0024,Supplies and Services related expenditure,01/07/2021,3.55,Director of Children's Services and Education
Miscellaneous,Civic/Social/Fraternal Assc,Highstreetvouchers,Supplies and Services related expenditure,01/07/2021,60.6,Director of Children's Services and Education
Type of Retail Store,Artist/Craft Shops,Hobbycraft,Supplies and Services related expenditure,01/07/2021,26.67,Director of Children's Services and Education
Facilities/Repair Supplies,Home Supply Warehouse Stores,B & Q 1238,Supplies and Services related expenditure,01/07/2021,85.42,Director of Children's Services and Education
Equipment And Furniture,Phone Serv/Equip Non-Util,O2 Uk,Supplies and Services related expenditure,01/07/2021,114,Director of Adult Services
Business To Business Eqpt/Furn,Stationery/Office Supplies,Viking Uk,Supplies and Services related expenditure,01/07/2021,-27.9,Director of Children's Services and Education
Government Service,Colleges/Univ/Jc/Profession,Gls Educational Su,Supplies and Services related expenditure,01/07/2021,182.5,Director of Children's Services and Education
Business To Business Facility/,Electrical Parts/Equipment,Rs Components,Supplies and Services related expenditure,01/07/2021,23.25,"Director of Housing, Neighbourhood and Building Services"
Business To Business Facility/,Electrical Parts/Equipment,Rs Components,Supplies and Services related expenditure,01/07/2021,23.24,"Director of Housing, Neighbourhood and Building Services"
Business To Business Facility/,Industrial Supplies - Def,Arco Limited (Ahpp),Supplies and Services related expenditure,01/07/2021,6.6,Director of Portsmouth International Port
Business To Business Facility/,Industrial Supplies - Def,Arco Limited (Ahpp),Supplies and Services related expenditure,01/07/2021,114.87,Director of Portsmouth International Port
Equipment And Furniture,Furniture/Equip Stores,Bb-Ideal St,Premises related expenditure,01/07/2021,236,Director of Portsmouth International Port
Business To Business Facility/,Industrial Supplies - Def,Arco Limited (Ahpp),Supplies and Services related expenditure,01/07/2021,17.22,Director of Portsmouth International Port
Business To Business Facility/,Industrial Supplies - Def,Arco Limited (Ahpp),Supplies and Services related expenditure,01/07/2021,83.05,"Director of Housing, Neighbourhood and Building Services"
Medical,Lab/Med/Hospital Equipment,Wightman & Parrish Ltd,Premises related expenditure,01/07/2021,63.66,"Director of Housing, Neighbourhood and Building Services"
Automobile Services & Supplies,Service Stations,Bp Family Farm Connect,Transport related expenditure,01/07/2021,2.86,Director of Children's Services and Education
Eating And Drinking Places,Fast Food Restaurants,Starbucks Coffee,Supplies and Services related expenditure,02/07/2021,4.45,Director of Children's Services and Education
Caterers Food,Caterers,7152 Chichester,Supplies and Services related expenditure,02/07/2021,6,Director of Children's Services and Education
Eating And Drinking Places,Eating Places/Restaurants,Burger King,Supplies and Services related expenditure,02/07/2021,6.92,Director of Children's Services and Education
Facilities/Repair Supplies,Home Supply Warehouse Stores,B & Q 1260,Supplies and Services related expenditure,02/07/2021,73.56,"Director of Housing, Neighbourhood and Building Services"
Equipment And Furniture,Equip/Furn Rent/Lease Serv,Power Tool Hire/Sa,Supplies and Services related expenditure,02/07/2021,300,"Director of Housing, Neighbourhood and Building Services"
Business To Business Eqpt/Furn,Stationery/Office Supplies,Www.Banneruk.Com,Supplies and Services related expenditure,02/07/2021,3.36,Director of Children's Services and Education
Business To Business Eqpt/Furn,Stationery/Office Supplies,Www.Banneruk.Com,Supplies and Services related expenditure,02/07/2021,22.98,Director of Children's Services and Education
Business To Business Facility/,Hardware Equipment/Supplies,Croma Locksmiths & Sec,Supplies and Services related expenditure,02/07/2021,20.7,Director of Regeneration
Facilities Maintenance,Clean/Maint/Janitoral Serv,Hilsea Hand Car Wash,Transport related expenditure,02/07/2021,40,Director of Regeneration
Facilities/Repair Supplies,Bicycle Shops/Sales/Service,Halfords 0852,Transport related expenditure,02/07/2021,44.17,Director of Regeneration
Type of Retail Store,Grocery Stores/Supermarkets,Tesco Stores 4611,Supplies and Services related expenditure,02/07/2021,30,Director of Children's Services and Education
Business Services,Business Services - Default,Indeed Tel+35312545907,Employees related expenditure,02/07/2021,1.09,Director of Children's Services and Education
Type of Retail Store,Music Stores/Pianos,Chamberlain Music,Supplies and Services related expenditure,02/07/2021,97.5,Director of Children's Services and Education
Other Supplies,Misc Speciality Retail,Www.Earlyyearsresource,Supplies and Services related expenditure,02/07/2021,97.98,Director of Children's Services and Education
Government Service,Colleges/Univ/Jc/Profession,Rhino Stationery,Supplies and Services related expenditure,02/07/2021,132.42,Director of Children's Services and Education
Facilities/Repair Supplies,Home Supply Warehouse Stores,B&q Direct,Supplies and Services related expenditure,02/07/2021,141.67,Director of Children's Services and Education
Type of Retail Store,Hobby/Toy/Game Stores,Klarna Sensory Education,Supplies and Services related expenditure,02/07/2021,171.73,Director of Children's Services and Education
Other Supplies,Department Stores,Southern Co-Op 0018,Premises related expenditure,02/07/2021,33.33,Director of Children's Services and Education
Business To Business Eqpt/Furn,Stationery/Office Supplies,Www.Banneruk.Com,Supplies and Services related expenditure,02/07/2021,66.68,Director of Children's Services and Education
Other Supplies,Misc Speciality Retail,Rope Source Ltd,Supplies and Services related expenditure,02/07/2021,75.06,"Director of Culture, Leisure & Regulatory Services"
Facilities/Repair Supplies,Lawn/Garden Supply/Nursery,Www.Tudorenvironmental,Supplies and Services related expenditure,02/07/2021,76.44,"Director of Culture, Leisure & Regulatory Services"
Auto/Vehicle Expenses,Auto Service Shops/Non Dealer,Deesand Mot And Tyres,Transport related expenditure,02/07/2021,88.15,"Director of Culture, Leisure & Regulatory Services"
Facilities/Repair Services,Spec Contractors - Default,Stadia-Sports.Co.Uk,Supplies and Services related expenditure,02/07/2021,908,"Director of Culture, Leisure & Regulatory Services"
Personal Service Provider,Accountants/Auditors/Bookpr,Laddersindustryltd,Supplies and Services related expenditure,02/07/2021,1305,"Director of Culture, Leisure & Regulatory Services"
Medical,Lab/Med/Hospital Equipment,Wightman & Parrish,Premises related expenditure,02/07/2021,30.45,"Director of Housing, Neighbourhood and Building Services"
Facilities/Repair Supplies,Hardware Stores,World Of Garden Produc,Supplies and Services related expenditure,02/07/2021,49.27,"Director of Housing, Neighbourhood and Building Services"
Transportation Conveyor,Taxicabs/Limousines,Sumup *a1 Taxis,Supplies and Services related expenditure,02/07/2021,20,Director of Corporate Services
Transportation Conveyor,Passenger Railways,Gwr Charlbury Sst,Supplies and Services related expenditure,02/07/2021,50.5,Director of Corporate Services
Type of Retail Store,Grocery Stores/Supermarkets,Www.Iceland.Co.Uk,Supplies and Services related expenditure,02/07/2021,140.5,Director of Adult Services
Facilities/Repair Supplies,Home Supply Warehouse Stores,B & Q 1260,Supplies and Services related expenditure,02/07/2021,143.62,"Director of Culture, Leisure & Regulatory Services"
Other Supplies,Misc Speciality Retail,Amznbusiness,Supplies and Services related expenditure,02/07/2021,6.72,Director of Children's Services and Education
Type of Retail Store,Grocery Stores/Supermarkets,Tesco Stores 4579,Supplies and Services related expenditure,02/07/2021,12.69,Director of Children's Services and Education
Business To Business Facility/,Industrial Supplies - Def,Magimix-Spares,Supplies and Services related expenditure,02/07/2021,139.3,Director of Adult Services
Utility,Phone Serv/Equip Utility,Vesta,Supplies and Services related expenditure,02/07/2021,12.5,Director of Children's Services and Education
Facilities/Repair Supplies,Home Supply Warehouse Stores,B & Q 1260,Supplies and Services related expenditure,02/07/2021,3.13,Director of Adult Services
Facilities/Repair Supplies,Lawn/Garden Supply/Nursery,Carters Of Swanwic,Supplies and Services related expenditure,02/07/2021,86.33,"Director of Housing, Neighbourhood and Building Services"
Other Supplies,Discount Stores,Argos Ltd,Supplies and Services related expenditure,02/07/2021,105.95,Director of Children's Services and Education
Other Supplies,Discount Stores,Argos Ltd,Supplies and Services related expenditure,02/07/2021,179.99,Director of Children's Services and Education
Transportation Conveyor,Passenger Railways,Swrailway Tck Off,Transport related expenditure,02/07/2021,18.3,Director of Children's Services and Education
Transportation Conveyor,Passenger Railways,Swrailway Tck Off,Transport related expenditure,02/07/2021,-18.3,Director of Children's Services and Education
Transportation Conveyor,Passenger Railways,Swrailway Tck Off,Transport related expenditure,02/07/2021,18.3,Director of Children's Services and Education
Transportation Conveyor,Passenger Railways,Swrailway Tck Off,Transport related expenditure,02/07/2021,-18.3,Director of Children's Services and Education
Transportation Conveyor,Passenger Railways,Swrailway Tck Off,Transport related expenditure,02/07/2021,18.3,Director of Children's Services and Education
Digital Goods,Digital Goods - Applications (Excludes Games),Facebk *facebk Es3wg5fqs2,Supplies and Services related expenditure,02/07/2021,71.99,Director of Children's Services and Education
Type of Retail Store,Grocery Stores/Supermarkets,Asda Groceries Online,Supplies and Services related expenditure,02/07/2021,-32.4,Director of Children's Services and Education
Type of Retail Store,Grocery Stores/Supermarkets,Asda Groceries Online,Supplies and Services related expenditure,02/07/2021,194.5,Director of Children's Services and Education
Business To Business Eqpt/Furn,Stationery/Office Supplies,Www.Banneruk.Com,Supplies and Services related expenditure,02/07/2021,47.76,"Director of Housing, Neighbourhood and Building Services"
Type of Retail Store,Grocery Stores/Supermarkets,Asda Stores,Supplies and Services related expenditure,02/07/2021,30.6,Director of Adult Services
Business To Business Facility/,Industrial Supplies - Def,Arco Limited (Sap),Supplies and Services related expenditure,02/07/2021,43.28,Director of Adult Services
Other Supplies,Misc Speciality Retail,Amznmktplace,Supplies and Services related expenditure,02/07/2021,14.56,"Director of Housing, Neighbourhood and Building Services"
Business Services,Business Services - Default,Eb *portsmouth Inclusi,Supplies and Services related expenditure,02/07/2021,171.67,Director of Children's Services and Education
Type of Retail Store,Grocery Stores/Supermarkets,Www.Iceland.Co.Uk,Supplies and Services related expenditure,02/07/2021,2,Director of Adult Services
Type of Retail Store,Grocery Stores/Supermarkets,Www.Iceland.Co.Uk,Supplies and Services related expenditure,02/07/2021,85.5,Director of Adult Services
Business Expenses/Services,Postage Stamps,Post Office Counter,Supplies and Services related expenditure,02/07/2021,8.95,Director of Portsmouth International Port
Business To Business Facility/,Hardware Equipment/Supplies,Www.Ecoprod.Co.Uk,Supplies and Services related expenditure,02/07/2021,105.8,"Director of Housing, Neighbourhood and Building Services"
Business To Business Eqpt/Furn,Stationery/Office Supplies,Pts,Supplies and Services related expenditure,02/07/2021,63.8,Director of Children's Services and Education
Medical,Lab/Med/Hospital Equipment,Wightman & Parrish,Supplies and Services related expenditure,02/07/2021,45.6,Director of Adult Services
Business To Business Facility/,Industrial Supplies - Def,Arco Limited (Sap),Supplies and Services related expenditure,02/07/2021,15.14,"Director of Culture, Leisure & Regulatory Services"
Business To Business Facility/,Industrial Supplies - Def,Arco Limited (Sap),Supplies and Services related expenditure,02/07/2021,22.71,"Director of Culture, Leisure & Regulatory Services"
Business To Business Eqpt/Furn,Computer Software Stores,Www.Pcwb.Com,Supplies and Services related expenditure,02/07/2021,3021.62,Director of Regeneration
Business Services,Business Services - Default,Fast Key Services Limi,Supplies and Services related expenditure,02/07/2021,6.11,Director of Adult Services
Business To Business Eqpt/Furn,Stationery/Office Supplies,Dactyl Publishing Limited,Supplies and Services related expenditure,02/07/2021,60,Director of Children's Services and Education
Type of Retail Store,Sporting Goods Stores,Bishopsport,Supplies and Services related expenditure,02/07/2021,158.5,Director of Children's Services and Education
Business Services,Business Services - Default,Voucher Express,Supplies and Services related expenditure,02/07/2021,260.75,Director of Children's Services and Education
Transportation Conveyor,"Parking Lots, Meters, Garages",3c_*portsmouth City Coun,Transport related expenditure,02/07/2021,5.17,Director of Children's Services and Education
Transportation Conveyor,Local Commuter Transport,Hovertravel Ltd,Transport related expenditure,02/07/2021,26.8,Director of Children's Services and Education
Miscellaneous,Other Direct Marketers,Amazon.Co.Uk,Supplies and Services related expenditure,02/07/2021,22.23,Director of Children's Services and Education
Business To Business Eqpt/Furn,Computer Software Stores,Uk Coaching Solutions,Supplies and Services related expenditure,02/07/2021,51.98,Director of Children's Services and Education
Equipment And Furniture,Equip/Furn Rent/Lease Serv,Acacia Groundcare Equipme,Supplies and Services related expenditure,02/07/2021,931,"Director of Culture, Leisure & Regulatory Services"
Transportation Conveyor,Passenger Railways,Swrailwayselfserve,Supplies and Services related expenditure,02/07/2021,12.6,Director of Children's Services and Education
Other Supplies,Misc Speciality Retail,Amznmktplace,Supplies and Services related expenditure,02/07/2021,19.98,Director of Children's Services and Education
Type of Retail Store,Grocery Stores/Supermarkets,Tesco Store 3186,Supplies and Services related expenditure,02/07/2021,4.1,Director of Adult Services
Business To Business Eqpt/Furn,Stationery/Office Supplies,Www.Banneruk.Com,Supplies and Services related expenditure,02/07/2021,214.62,"Director of Housing, Neighbourhood and Building Services"
Business To Business Eqpt/Furn,Computer Software Stores,Www.Pcwb.Com,Supplies and Services related expenditure,02/07/2021,249,Director of Regeneration
Business To Business Eqpt/Furn,Computer Software Stores,Www.Pcwb.Com,Supplies and Services related expenditure,02/07/2021,215.82,Director of Regeneration
Type of Retail Store,Grocery Stores/Supermarkets,Asda Stores,Supplies and Services related expenditure,02/07/2021,8.33,"Director of Housing, Neighbourhood and Building Services"
Business Services,Business Services - Default,Fast Key Services Limi,Premises related expenditure,02/07/2021,30.93,Director of Children's Services and Education
Utility,Utilities/Elec/Gas/H2O/Sani,Https://Customerhu,Premises related expenditure,02/07/2021,206.4,Director of Children's Services and Education
Facilities/Repair Supplies,Lawn/Garden Supply/Nursery,Merry Mower Services Lt,Supplies and Services related expenditure,02/07/2021,129.45,"Director of Housing, Neighbourhood and Building Services"
Other Supplies,Misc Speciality Retail,Amznmktplace,Supplies and Services related expenditure,02/07/2021,22.3,Director of Children's Services and Education
Other Supplies,Misc Speciality Retail,Amznmktplace,Supplies and Services related expenditure,02/07/2021,49.4,Director of Children's Services and Education
Type of Retail Store,Grocery Stores/Supermarkets,Cedar News,Supplies and Services related expenditure,02/07/2021,1.69,Director of Children's Services and Education
Other Supplies,Department Stores,Southern Co-Op 0323,Supplies and Services related expenditure,02/07/2021,2,Director of Children's Services and Education
Other Supplies,Department Stores,Southern Co-Op 0323,Supplies and Services related expenditure,02/07/2021,5.29,Director of Children's Services and Education
Type of Retail Store,Pet Stores/Food & Supply,Emsworth Aquaria & Rep,Agency and Third Party Payments related expenditure,02/07/2021,14.99,Director of Children's Services and Education
Type of Retail Store,Pet Stores/Food & Supply,Pets At Home Ltd,Agency and Third Party Payments related expenditure,02/07/2021,16.63,Director of Children's Services and Education
Facilities/Repair Supplies,Home Supply Warehouse Stores,B & Q 1260,Supplies and Services related expenditure,02/07/2021,22.68,Director of Adult Services
Other Supplies,Misc Gen Merchandise - Def,B&m 566 - Farlington,Premises related expenditure,02/07/2021,2.58,Director of Children's Services and Education
Type of Retail Store,Grocery Stores/Supermarkets,Tesco Stores 4611,Supplies and Services related expenditure,02/07/2021,50,Director of Children's Services and Education
Type of Retail Store,Grocery Stores/Supermarkets,Asda Groceries Online,Supplies and Services related expenditure,02/07/2021,-0.42,Director of Children's Services and Education
Type of Retail Store,Grocery Stores/Supermarkets,Asda Groceries Online,Supplies and Services related expenditure,02/07/2021,-1.06,Director of Children's Services and Education
Type of Retail Store,Grocery Stores/Supermarkets,Asda Groceries Online,Supplies and Services related expenditure,02/07/2021,62.07,Director of Children's Services and Education
Other Supplies,Department Stores,Lockshopwarehouse,Supplies and Services related expenditure,02/07/2021,255.5,"Director of Culture, Leisure & Regulatory Services"
Amusement/Entertainment,Member Clubs/Sport/Rec/Golf,Horizon Leisure Trust,Employees related expenditure,02/07/2021,240,Director of Children's Services and Education
Business To Business Facility/,Hardware Equipment/Supplies,Croma Locksmiths & Sec,Premises related expenditure,02/07/2021,7.67,Director of Children's Services and Education
Type of Retail Store,Electronics Sales,Currys Pc World,Supplies and Services related expenditure,02/07/2021,18.32,Director of Children's Services and Education
Eating And Drinking Places,Fast Food Restaurants,McDonalds,Agency and Third Party Payments related expenditure,02/07/2021,15.98,Director of Children's Services and Education
Eating And Drinking Places,Fast Food Restaurants,McDonalds,Agency and Third Party Payments related expenditure,02/07/2021,4.69,Director of Children's Services and Education
Eating And Drinking Places,Fast Food Restaurants,De Garden Limited,Agency and Third Party Payments related expenditure,02/07/2021,32.83,Director of Children's Services and Education
Business Expenses/Services,Postage Stamps,Post Office Counter,Supplies and Services related expenditure,02/07/2021,5.62,Director of Children's Services and Education
Facilities Maintenance,Specialty Cleaning/Polishing,Paypal,Premises related expenditure,02/07/2021,71.6,Director of Children's Services and Education
Type of Retail Store,Electronics Sales,Hp Inc Hp.Com Store Uk,Supplies and Services related expenditure,02/07/2021,95,Director of Children's Services and Education
Type of Retail Store,Grocery Stores/Supermarkets,Asda Stores,Supplies and Services related expenditure,02/07/2021,11.62,Director of Children's Services and Education
Facilities Maintenance,Clean/Maint/Janitoral Serv,Hilsea Hand Car Wash,Transport related expenditure,03/07/2021,40,Director of Regeneration
Type of Retail Store,Candy/Nut/Confection Store,Krispy Kreme Portsmouth,Supplies and Services related expenditure,03/07/2021,131.98,Director of Portsmouth International Port
Type of Retail Store,Grocery Stores/Supermarkets,Www.Iceland.Co.Uk,Supplies and Services related expenditure,03/07/2021,61.5,Director of Adult Services
Other Supplies,Department Stores,Southern Co-Op 0008,Supplies and Services related expenditure,03/07/2021,3.25,Director of Children's Services and Education
Amusement/Entertainment,Theatrical Producers,Jpimedia,Supplies and Services related expenditure,03/07/2021,89.9,Director of Regeneration
Type of Retail Store,Pet Stores/Food & Supply,Pets At Home Ltd,Agency and Third Party Payments related expenditure,03/07/2021,6.08,Director of Children's Services and Education
Type of Retail Store,Grocery Stores/Supermarkets,Tesco Stores 4579,Supplies and Services related expenditure,03/07/2021,2.73,Director of Children's Services and Education
Type of Retail Store,Grocery Stores/Supermarkets,Tesco Stores 4579,Supplies and Services related expenditure,03/07/2021,7.61,Director of Children's Services and Education
Business To Business Eqpt/Furn,Computer Software Stores,Adobe,Supplies and Services related expenditure,03/07/2021,47.99,Director of Corporate Services
Business To Business Eqpt/Furn,Computer Software Stores,Adobe,Supplies and Services related expenditure,03/07/2021,47.99,Director of Corporate Services
Business To Business Eqpt/Furn,Computer Software Stores,Adobe,Supplies and Services related expenditure,03/07/2021,47.99,Director of Corporate Services
Transportation Conveyor,"Parking Lots, Meters, Garages",Ncp Portsmouth Market Wa,Transport related expenditure,03/07/2021,2.25,Director of Children's Services and Education
Eating And Drinking Places,Fast Food Restaurants,McDonalds,Agency and Third Party Payments related expenditure,03/07/2021,10.74,Director of Children's Services and Education
Eating And Drinking Places,Fast Food Restaurants,McDonalds,Agency and Third Party Payments related expenditure,03/07/2021,4.51,Director of Children's Services and Education
Clothing Services,Mens/Womens Clothing Stores,H & M,Supplies and Services related expenditure,03/07/2021,19.98,Director of Children's Services and Education
Clothing Services,Family Clothing Stores,Next Retail Ltd,Supplies and Services related expenditure,03/07/2021,8.42,Director of Children's Services and Education
Type of Retail Store,Grocery Stores/Supermarkets,Wm Morrisons Store,Supplies and Services related expenditure,03/07/2021,4.72,Director of Children's Services and Education
Type of Retail Store,Grocery Stores/Supermarkets,Wm Morrisons Store,Supplies and Services related expenditure,03/07/2021,4.93,Director of Children's Services and Education
Other Supplies,Discount Stores,Poundland Ltd 1210,Supplies and Services related expenditure,03/07/2021,16.15,Director of Children's Services and Education
Type of Retail Store,Record Shops,Hmv,Supplies and Services related expenditure,03/07/2021,19.97,Director of Children's Services and Education
Other Supplies,Discount Stores,Poundland,Supplies and Services related expenditure,03/07/2021,24.75,Director of Children's Services and Education
Business Expenses/Services,Postage Stamps,Post Office Counter,Supplies and Services related expenditure,03/07/2021,2.25,Director of Children's Services and Education
Other Supplies,Misc Speciality Retail,Amznmktplace,Premises related expenditure,04/07/2021,115.8,Director of Children's Services and Education
Other Supplies,Misc Speciality Retail,Amznmktplace,Premises related expenditure,04/07/2021,17.41,Director of Children's Services and Education
Other Supplies,Department Stores,Southern Co-Op 0018,Supplies and Services related expenditure,04/07/2021,33.33,Director of Children's Services and Education
Other Supplies,Misc Speciality Retail,Amznmktplace,Premises related expenditure,04/07/2021,10.66,Director of Children's Services and Education
Other Supplies,Misc Speciality Retail,Amznmktplace,Supplies and Services related expenditure,04/07/2021,44.16,Director of Children's Services and Education
Other Supplies,Misc Speciality Retail,Amznmktplace,Supplies and Services related expenditure,04/07/2021,166.64,Director of Children's Services and Education
Facilities/Repair Supplies,Home Supply Warehouse Stores,B & Q 1260,Supplies and Services related expenditure,04/07/2021,24.09,"Director of Housing, Neighbourhood and Building Services"
Other Supplies,Misc Speciality Retail,Amznbusiness,Supplies and Services related expenditure,04/07/2021,19.26,Director of Public Health
Utility,Phone Serv/Equip Utility,Zoom.Us 888-799-9666,Supplies and Services related expenditure,04/07/2021,51.99,Director of Children's Services and Education
Other Supplies,Misc Speciality Retail,Amznmktplace,Premises related expenditure,04/07/2021,74.87,Director of Adult Services
Other Supplies,Misc Speciality Retail,Amznmktplace,Supplies and Services related expenditure,04/07/2021,6.37,Director of Children's Services and Education
Other Supplies,Misc Speciality Retail,Amznmktplace,Premises related expenditure,04/07/2021,17.7,Director of Adult Services
Type of Retail Store,Grocery Stores/Supermarkets,Lidl Gb Portsmouth,Supplies and Services related expenditure,04/07/2021,6.88,Director of Children's Services and Education
Transportation Conveyor,"Parking Lots, Meters, Garages",Gunwharf Quays,Transport related expenditure,04/07/2021,1.75,Director of Children's Services and Education
Type of Retail Store,Drug Stores & Pharmacies,Boots 1014,Agency and Third Party Payments related expenditure,04/07/2021,2.08,Director of Children's Services and Education
Type of Retail Store,Grocery Stores/Supermarkets,Tesco Stores 5153,Supplies and Services related expenditure,04/07/2021,2.1,Director of Children's Services and Education
Type of Retail Store,Grocery Stores/Supermarkets,Tesco Stores 5153,Supplies and Services related expenditure,04/07/2021,3.5,Director of Children's Services and Education
Amusement/Entertainment,Motion Picture Theatres,Vue Cinema,Agency and Third Party Payments related expenditure,04/07/2021,8.32,Director of Children's Services and Education
Other Supplies,Misc Speciality Retail,Amznmktplace,Supplies and Services related expenditure,04/07/2021,5.79,Director of Adult Services
Auto/Vehicle Expenses,Toll And Bridge Fees,Tfl Business Bops Web,Supplies and Services related expenditure,02/07/2021,15,Director of Children's Services and Education
Automobile Services & Supplies,Service Stations,Mfg Cosham Service Statio,Premises related expenditure,02/07/2021,43.28,"Director of Housing, Neighbourhood and Building Services"
Automobile Services & Supplies,Service Stations,Bp Wisley South,Transport related expenditure,02/07/2021,2.79,Director of Children's Services and Education
Miscellaneous,Continuity/Subscription Mercht,Mailchimp,Supplies and Services related expenditure,04/07/2021,55.47,"Director of Culture, Leisure & Regulatory Services"
Type of Retail Store,Dairy Product Stores,Eastney Convenience Store,Supplies and Services related expenditure,05/07/2021,1.09,Director of Adult Services
Auto/Vehicle Expenses,Toll And Bridge Fees,Dart-Charge,Supplies and Services related expenditure,05/07/2021,2.5,Director of Children's Services and Education
Facilities Maintenance,Clean/Maint/Janitoral Serv,Initial Washroom,Premises related expenditure,05/07/2021,4.05,Director of Regeneration
Other Supplies,Misc Speciality Retail,Amznmktplace,Supplies and Services related expenditure,05/07/2021,87.08,Director of Regeneration
Type of Retail Store,Hobby/Toy/Game Stores,Communityplaythings Uk,Supplies and Services related expenditure,05/07/2021,348,Director of Children's Services and Education
Type of Retail Store,Grocery Stores/Supermarkets,Asda Stores,Supplies and Services related expenditure,05/07/2021,8.12,Director of Children's Services and Education
Medical,Lab/Med/Hospital Equipment,Wightman & Parrish,Premises related expenditure,05/07/2021,28.4,"Director of Housing, Neighbourhood and Building Services"
Medical,Lab/Med/Hospital Equipment,Wightman & Parrish,Premises related expenditure,05/07/2021,53.1,"Director of Housing, Neighbourhood and Building Services"
Medical,Lab/Med/Hospital Equipment,Wightman & Parrish,Premises related expenditure,05/07/2021,55.44,"Director of Housing, Neighbourhood and Building Services"
Medical,Lab/Med/Hospital Equipment,Wightman & Parrish,Premises related expenditure,05/07/2021,127.76,"Director of Housing, Neighbourhood and Building Services"
Medical,Lab/Med/Hospital Equipment,Wightman & Parrish,Premises related expenditure,05/07/2021,213.82,"Director of Housing, Neighbourhood and Building Services"
Medical,Lab/Med/Hospital Equipment,Wightman & Parrish,Premises related expenditure,05/07/2021,279.35,"Director of Housing, Neighbourhood and Building Services"
Business Services,Business Services - Default,Fast Key Services Limi,Premises related expenditure,05/07/2021,4.9,Director of Children's Services and Education
Business To Business Eqpt/Furn,Computer Software Stores,Sp * School Badges Uk,Supplies and Services related expenditure,05/07/2021,27.25,Director of Children's Services and Education
Digital Goods,"Digital Goods - Media, Books, Movies, Music",Spotify Uk,Supplies and Services related expenditure,05/07/2021,14.16,Director of Children's Services and Education
Type of Retail Store,Music Stores/Pianos,Joytunes,Supplies and Services related expenditure,05/07/2021,17.99,Director of Children's Services and Education
Type of Retail Store,Grocery Stores/Supermarkets,Wm Morrisons Store,Supplies and Services related expenditure,05/07/2021,10.79,Director of Children's Services and Education
Type of Retail Store,Grocery Stores/Supermarkets,Wm Morrisons Store,Supplies and Services related expenditure,05/07/2021,2,Director of Children's Services and Education
Facilities/Repair Supplies,Lawn/Garden Supply/Nursery,M & S Enterprises,Supplies and Services related expenditure,05/07/2021,145.37,"Director of Housing, Neighbourhood and Building Services"
Type of Retail Store,Grocery Stores/Supermarkets,Lidl Gb Portsmouth,Supplies and Services related expenditure,05/07/2021,6.98,"Director of Housing, Neighbourhood and Building Services"
Business Services,Business Services - Default,Carrier Bag Shop,Supplies and Services related expenditure,05/07/2021,136.35,"Director of Culture, Leisure & Regulatory Services"
Type of Retail Store,Grocery Stores/Supermarkets,Tesco Stores 4611,Supplies and Services related expenditure,05/07/2021,10,Director of Children's Services and Education
Type of Retail Store,Grocery Stores/Supermarkets,Waitrose 170,Supplies and Services related expenditure,05/07/2021,21.34,Director of Children's Services and Education
Type of Retail Store,Grocery Stores/Supermarkets,Waitrose 170,Supplies and Services related expenditure,05/07/2021,4.43,Director of Children's Services and Education
Personal Service Provider,Computer Program/Sys Design,Www.Printerland.Co,Supplies and Services related expenditure,05/07/2021,276.48,Director of Children's Services and Education
Other Supplies,Misc Speciality Retail,Amznmktplace,Supplies and Services related expenditure,05/07/2021,23.98,Director of Corporate Services
Other Supplies,Misc Speciality Retail,Amznmktplace,Supplies and Services related expenditure,05/07/2021,10.82,Director of Regeneration
Other Supplies,Misc Speciality Retail,Amz*big Box Shop,Supplies and Services related expenditure,05/07/2021,-40.83,Director of Corporate Services
Equipment And Furniture,Household Appliance Stores,Ao Retail Limited,Supplies and Services related expenditure,05/07/2021,284,Director of Adult Services
Other Supplies,Catalog Merchant,Www.Nisbets.Com,Supplies and Services related expenditure,05/07/2021,64.23,Director of Adult Services
Business To Business Facility/,Electrical Parts/Equipment,Edmundson Electrical,Premises related expenditure,05/07/2021,120.92,Director of Portsmouth International Port
Business To Business Facility/,Hardware Equipment/Supplies,Ross Handling Ltd,Premises related expenditure,05/07/2021,129.95,Director of Portsmouth International Port
Business To Business Facility/,Industrial Supplies - Def,Express Weldcare Services,Premises related expenditure,05/07/2021,147.25,Director of Portsmouth International Port
Business To Business Facility/,Industrial Supplies - Def,Fan Supplier,Premises related expenditure,05/07/2021,758.18,Director of Portsmouth International Port
Type of Retail Store,Grocery Stores/Supermarkets,Tesco Stores 4579,Supplies and Services related expenditure,05/07/2021,5.67,Director of Adult Services
Other Supplies,Misc Speciality Retail,Amznbusiness,Supplies and Services related expenditure,05/07/2021,12.29,Director of Adult Services
Other Supplies,Misc Speciality Retail,Amznbusiness,Supplies and Services related expenditure,05/07/2021,14.04,Director of Adult Services
Type of Retail Store,Grocery Stores/Supermarkets,Tesco Stores 4579,Supplies and Services related expenditure,05/07/2021,32.66,Director of Adult Services
Government Service,Govt Serv - Default,Pcc Internet Payment,Agency and Third Party Payments related expenditure,05/07/2021,11,"Director of Culture, Leisure & Regulatory Services"
Facilities/Repair Supplies,Hardware Stores,A M P Electrical Suppl,Premises related expenditure,05/07/2021,18,Director of Children's Services and Education
Type of Retail Store,Grocery Stores/Supermarkets,Tesco Store 3055,Supplies and Services related expenditure,05/07/2021,8.31,Director of Children's Services and Education
Type of Retail Store,Grocery Stores/Supermarkets,Tesco Store 3055,Supplies and Services related expenditure,05/07/2021,11.25,Director of Children's Services and Education
Type of Retail Store,Grocery Stores/Supermarkets,Tesco Store 3055,Supplies and Services related expenditure,05/07/2021,2.6,Director of Children's Services and Education
Type of Retail Store,Grocery Stores/Supermarkets,Tesco Store 3055,Supplies and Services related expenditure,05/07/2021,46.83,Director of Children's Services and Education
Type of Retail Store,Grocery Stores/Supermarkets,Tesco Store 3055,Supplies and Services related expenditure,05/07/2021,56.32,Director of Children's Services and Education
Auto/Vehicle Expenses,Toll And Bridge Fees,M6 Toll,Supplies and Services related expenditure,05/07/2021,5.75,Director of Children's Services and Education
Hotels And Motels,Lodging/Hotels/Motels/Resorts,Last Drop Village Hote,Supplies and Services related expenditure,05/07/2021,7.86,Director of Children's Services and Education
Hotels And Motels,Lodging/Hotels/Motels/Resorts,Last Drop Village Hote,Supplies and Services related expenditure,05/07/2021,78.1,Director of Children's Services and Education
Hotels And Motels,Lodging/Hotels/Motels/Resorts,Last Drop Village Hote,Supplies and Services related expenditure,05/07/2021,78.1,Director of Children's Services and Education
Miscellaneous,Other Direct Marketers,Amazon.Co.Uk,Supplies and Services related expenditure,05/07/2021,30,Director of Children's Services and Education
Business To Business Facility/,Hardware Equipment/Supplies,Croma Locksmiths & Sec,Supplies and Services related expenditure,05/07/2021,17.25,"Director of Culture, Leisure & Regulatory Services"
Type of Retail Store,Grocery Stores/Supermarkets,Wm Morrisons Store,Supplies and Services related expenditure,05/07/2021,4,Director of Children's Services and Education
Type of Retail Store,Grocery Stores/Supermarkets,Wm Morrisons Store,Supplies and Services related expenditure,05/07/2021,4.79,Director of Children's Services and Education
Type of Retail Store,Grocery Stores/Supermarkets,Wm Morrisons Store,Supplies and Services related expenditure,05/07/2021,21.5,Director of Children's Services and Education
Facilities/Repair Supplies,Hardware Stores,Home Bargains,Supplies and Services related expenditure,05/07/2021,23.3,Director of Children's Services and Education
Facilities/Repair Supplies,Hardware Stores,Home Bargains,Premises related expenditure,05/07/2021,9.37,Director of Children's Services and Education
Facilities/Repair Supplies,Hardware Stores,Home Bargains,Supplies and Services related expenditure,05/07/2021,2.15,Director of Children's Services and Education
Type of Retail Store,Grocery Stores/Supermarkets,Lidl Gb Portsmouth,Supplies and Services related expenditure,05/07/2021,75.38,Director of Children's Services and Education
Type of Retail Store,Grocery Stores/Supermarkets,Lidl Gb Portsmouth,Supplies and Services related expenditure,05/07/2021,6.43,Director of Children's Services and Education
Type of Retail Store,Grocery Stores/Supermarkets,Farmfoods 750,Supplies and Services related expenditure,05/07/2021,15,Director of Children's Services and Education
Type of Retail Store,Grocery Stores/Supermarkets,Farmfoods 750,Supplies and Services related expenditure,05/07/2021,92.75,Director of Children's Services and Education
Business To Business Eqpt/Furn,Stationery/Office Supplies,Www.Banneruk.Com,Supplies and Services related expenditure,05/07/2021,3.8,"Director of Culture, Leisure & Regulatory Services"
Business To Business Eqpt/Furn,Book Stores,Blackwells,Supplies and Services related expenditure,05/07/2021,12.99,"Director of Housing, Neighbourhood and Building Services"
Government Service,Govt Serv - Default,Portsmouth City Co,Transport related expenditure,05/07/2021,10,Director of Adult Services
Facilities/Repair Supplies,Hardware Stores,Trading Depot,Supplies and Services related expenditure,05/07/2021,140,Director of Children's Services and Education
Facilities/Repair Services,Spec Contractors - Default,Trophystore.Co.Uk Limited,Supplies and Services related expenditure,05/07/2021,186.98,Director of Children's Services and Education
Other Supplies,Misc Speciality Retail,Amznmktplace Amazon.Co.Uk,Supplies and Services related expenditure,05/07/2021,114.82,"Director of Housing, Neighbourhood and Building Services"
Facilities/Repair Supplies,Lumber/Build. Supply Stores,Screwfix Direct,Premises related expenditure,05/07/2021,23.29,Director of Children's Services and Education
Medical,Lab/Med/Hospital Equipment,Wightman & Parrish,Premises related expenditure,05/07/2021,19.82,"Director of Housing, Neighbourhood and Building Services"
Government Service,Schools - Default,Youcan: Online Profess,Employees related expenditure,05/07/2021,-5.83,Director of Children's Services and Education
Government Service,Schools - Default,Youcan: Online Profess,Employees related expenditure,05/07/2021,-5.83,Director of Children's Services and Education
Business To Business Eqpt/Furn,Stationery/Office Supplies,Www.Banneruk.Com,Supplies and Services related expenditure,05/07/2021,278.57,"Director of Housing, Neighbourhood and Building Services"
Other Supplies,Misc Speciality Retail,Amznbusiness,Supplies and Services related expenditure,05/07/2021,324.17,Director of Corporate Services
Other Supplies,Misc Speciality Retail,Amznmktplace,Supplies and Services related expenditure,05/07/2021,22.46,"Director of Housing, Neighbourhood and Building Services"
Medical,Lab/Med/Hospital Equipment,Wightman & Parrish,Premises related expenditure,05/07/2021,39.24,"Director of Housing, Neighbourhood and Building Services"
Medical,Lab/Med/Hospital Equipment,Wightman & Parrish,Premises related expenditure,05/07/2021,71.36,"Director of Housing, Neighbourhood and Building Services"
Business Expenses/Services,Postage Stamps,Post Office Counter,Supplies and Services related expenditure,05/07/2021,111.05,Director of Regeneration
Other Supplies,Wholesale Clubs,The Fruit Basket,Supplies and Services related expenditure,05/07/2021,285.04,Director of Adult Services
Type of Retail Store,Freezer/Meat Lockers,Dennis Edwards Food Serv,Supplies and Services related expenditure,05/07/2021,311.65,Director of Adult Services
Type of Retail Store,Freezer/Meat Lockers,Dennis Edwards Food Serv,Supplies and Services related expenditure,05/07/2021,21.17,Director of Adult Services
Medical,Lab/Med/Hospital Equipment,Wightman & Parrish Ltd,Supplies and Services related expenditure,05/07/2021,312.16,Director of Adult Services
Medical,Lab/Med/Hospital Equipment,Wightman & Parrish Ltd,Supplies and Services related expenditure,05/07/2021,33.77,Director of Adult Services
Medical,Lab/Med/Hospital Equipment,Wightman & Parrish Ltd,Premises related expenditure,05/07/2021,38.1,Director of Adult Services
Type of Retail Store,Freezer/Meat Lockers,Dennis Edwards Food Serv,Supplies and Services related expenditure,05/07/2021,784.65,Director of Adult Services
Type of Retail Store,Freezer/Meat Lockers,Dennis Edwards Food Serv,Supplies and Services related expenditure,05/07/2021,57.17,Director of Adult Services
Personal Service Provider,Detective/Protective Agen,Amberley Security,Supplies and Services related expenditure,05/07/2021,4.17,Director of Children's Services and Education
Hotels And Motels,Lodging/Hotels/Motels/Resorts,Last Drop Village Hote,Supplies and Services related expenditure,05/07/2021,5.62,Director of Children's Services and Education
Automobile Rental,Automobile Rental Agency,Rentalcars.Com,Transport related expenditure,05/07/2021,80.97,Director of Children's Services and Education
Airlines,Airlines And Air Carriers,Loganair,Transport related expenditure,05/07/2021,280.61,Director of Children's Services and Education
Miscellaneous,Misc Personal Serv - Def,Blue Funnel Cruises Lt,Supplies and Services related expenditure,05/07/2021,795,NON REVENUE
Other Supplies,Misc Gen Merchandise - Def,Www.School-Bears.Co.Uk,Supplies and Services related expenditure,05/07/2021,309,Director of Children's Services and Education
Business To Business Eqpt/Furn,Computers/Peripherals/Software,Native-Instruments.Com,Supplies and Services related expenditure,05/07/2021,36.67,"Director of Housing, Neighbourhood and Building Services"
Type of Retail Store,Hobby/Toy/Game Stores,Klarna Sensory Education,Supplies and Services related expenditure,05/07/2021,67.9,Director of Children's Services and Education
Type of Retail Store,Hobby/Toy/Game Stores,Klarna Sensory Education,Supplies and Services related expenditure,05/07/2021,3.95,Director of Children's Services and Education
Business To Business Facility/,Industrial Supplies - Def,Zychem Limited,Supplies and Services related expenditure,05/07/2021,158,Director of Children's Services and Education
Transportation Conveyor,Passenger Railways,Swrailway Tck Off,Supplies and Services related expenditure,05/07/2021,106.4,"Director of Housing, Neighbourhood and Building Services"
Other Supplies,Discount Stores,Www.Theworks.Co.Uk,Supplies and Services related expenditure,05/07/2021,50,Director of Children's Services and Education
Other Supplies,Discount Stores,Www.Theworks.Co.Uk,Supplies and Services related expenditure,05/07/2021,60,Director of Children's Services and Education
Utility,Computer Network/Info Svcs,Fasthosts Internet,Supplies and Services related expenditure,05/07/2021,55,Director of Children's Services and Education
Business To Business Facility/,Hardware Equipment/Supplies,Croma Locksmiths & Sec,Supplies and Services related expenditure,05/07/2021,47.36,Director of Adult Services
Facilities/Repair Supplies,Lawn/Garden Supply/Nursery,Www.Primrose.Co.Uk,Supplies and Services related expenditure,05/07/2021,52.66,Director of Portsmouth International Port
Business To Business Eqpt/Furn,Book Stores,Www.Jctltd.Co.Uk,Supplies and Services related expenditure,05/07/2021,790.67,"Director of Housing, Neighbourhood and Building Services"
Caterers Food,Caterers,Booker Limited Portsmouth,Supplies and Services related expenditure,05/07/2021,148.75,Director of Children's Services and Education
Other Supplies,Discount Stores,Www.Theworks.Co.Uk,Supplies and Services related expenditure,05/07/2021,180,Director of Children's Services and Education
Personal Service Provider,Real Estate Agents And Managers,The Neighbourhood Card,Supplies and Services related expenditure,05/07/2021,100,Director of Children's Services and Education
Other Supplies,Discount Stores,Argos Ltd,Supplies and Services related expenditure,05/07/2021,167.9,Director of Children's Services and Education
Other Supplies,Discount Stores,Argos Ltd,Supplies and Services related expenditure,05/07/2021,409.98,Director of Children's Services and Education
Business To Business Facility/,Industrial Supplies - Def,Arco Limited (Sap),Supplies and Services related expenditure,05/07/2021,54.34,"Director of Housing, Neighbourhood and Building Services"
Business To Business Facility/,Industrial Supplies - Def,Arco Limited (Sap),Supplies and Services related expenditure,05/07/2021,84.48,"Director of Housing, Neighbourhood and Building Services"
Medical,Lab/Med/Hospital Equipment,Wightman & Parrish Ltd,Premises related expenditure,05/07/2021,633.5,"Director of Housing, Neighbourhood and Building Services"
Business To Business Facility/,Electrical Parts/Equipment,Trafalgar Cleaning Equip,Supplies and Services related expenditure,05/07/2021,672.83,"Director of Housing, Neighbourhood and Building Services"
Type of Retail Store,Grocery Stores/Supermarkets,Tesco Stores 2494,Supplies and Services related expenditure,05/07/2021,30,Director of Children's Services and Education
Type of Retail Store,Hobby/Toy/Game Stores,Klarna Sensory Education,Supplies and Services related expenditure,05/07/2021,74.58,Director of Children's Services and Education
Digital Goods,Digital Goods - Games,Playstationnetwork,Agency and Third Party Payments related expenditure,05/07/2021,6.99,Director of Children's Services and Education
Business Expenses/Services,Postage Stamps,Post Office Counter,Supplies and Services related expenditure,05/07/2021,20.4,Director of Children's Services and Education
Miscellaneous,Continuity/Subscription Mercht,Amazon Prime,Supplies and Services related expenditure,05/07/2021,6.66,Director of Children's Services and Education
Type of Retail Store,Grocery Stores/Supermarkets,Tesco Store 3048,Supplies and Services related expenditure,05/07/2021,3.19,Director of Children's Services and Education
Type of Retail Store,Sporting Goods Stores,J D Sports Fashion Plc,Supplies and Services related expenditure,05/07/2021,45.92,Director of Children's Services and Education
Facilities/Repair Supplies,Lumber/Build. Supply Stores,Marshalls Group Limited,Supplies and Services related expenditure,05/07/2021,-283.72,Director of Regeneration
Type of Retail Store,Grocery Stores/Supermarkets,Asda Groceries Online,Supplies and Services related expenditure,05/07/2021,26.8,Director of Children's Services and Education
Type of Retail Store,Grocery Stores/Supermarkets,Asda Groceries Online,Supplies and Services related expenditure,05/07/2021,40.34,Director of Children's Services and Education
Amusement/Entertainment,Amusement/Rec Serv - Def,Peter Ashley Activity Cen,Supplies and Services related expenditure,05/07/2021,344,Director of Children's Services and Education
Miscellaneous,Other Direct Marketers,Amazon.Co.Uk,Supplies and Services related expenditure,06/07/2021,17.41,Director of Public Health
Business To Business Facility/,Industrial Supplies - Def,Arco Limited (Ahpp),Supplies and Services related expenditure,02/07/2021,33.91,"Director of Housing, Neighbourhood and Building Services"
Automobile Services & Supplies,Service Stations,All Saints Service Statio,Premises related expenditure,05/07/2021,33.33,Director of Children's Services and Education
Other Supplies,Discount Stores,Argos Ltd,Agency and Third Party Payments related expenditure,05/07/2021,259.99,Director of Children's Services and Education
Transportation Conveyor,Taxicabs/Limousines,Andicars,Supplies and Services related expenditure,05/07/2021,21.4,"Director of Housing, Neighbourhood and Building Services"
Business To Business Facility/,Electrical Parts/Equipment,Rs Components,Supplies and Services related expenditure,05/07/2021,6.81,"Director of Culture, Leisure & Regulatory Services"
Clothing Services,Family Clothing Stores,Primark,Supplies and Services related expenditure,05/07/2021,5.83,Director of Children's Services and Education
Business Services,Business Services - Default,Eb *portsmouth News Bu,Supplies and Services related expenditure,06/07/2021,169.78,Director of Portsmouth International Port
Business To Business Eqpt/Furn,Stationery/Office Supplies,Www.Banneruk.Com,Supplies and Services related expenditure,06/07/2021,1.38,Director of Children's Services and Education
Transportation Conveyor,Transportation Svcs - Default,Aqua Cars,Supplies and Services related expenditure,06/07/2021,5,Director of Adult Services
Facilities/Repair Supplies,Lumber/Build. Supply Stores,Wickes Havant,Supplies and Services related expenditure,06/07/2021,11.67,"Director of Culture, Leisure & Regulatory Services"
Utility,Phone Serv/Equip Utility,Zoom.Us 888-799-9666,Supplies and Services related expenditure,06/07/2021,11.99,Director of Children's Services and Education
Facilities Maintenance,Clean/Maint/Janitoral Serv,Suez Recycling&recover,Premises related expenditure,06/07/2021,294.48,Director of Regeneration
Facilities Maintenance,Clean/Maint/Janitoral Serv,Suez Recycling&recover,Premises related expenditure,06/07/2021,405.43,Director of Regeneration
Type of Retail Store,Music Stores/Pianos,Www.Chamberlainmusic.C,Supplies and Services related expenditure,06/07/2021,119.62,Director of Children's Services and Education
Other Supplies,Department Stores,Southern Co-Op 0018,Supplies and Services related expenditure,06/07/2021,3.21,Director of Children's Services and Education
Other Supplies,Department Stores,Southern Co-Op 0018,Premises related expenditure,06/07/2021,25,Director of Children's Services and Education
Personal Service Provider,Insurance Sales/Underwrite,Aa B2b,Transport related expenditure,06/07/2021,252.7,Director of Children's Services and Education
Other Supplies,Department Stores,Ebay O*23-07300-64739,Supplies and Services related expenditure,06/07/2021,9.96,Director of Adult Services
Other Supplies,Discount Stores,Argos Ltd,Supplies and Services related expenditure,06/07/2021,24.95,Director of Adult Services
Other Supplies,Discount Stores,Argos Ltd,Supplies and Services related expenditure,06/07/2021,20,Director of Children's Services and Education
Other Supplies,Misc Speciality Retail,Amznmktplace,Supplies and Services related expenditure,06/07/2021,6.53,Director of Portsmouth International Port
Other Supplies,Misc Speciality Retail,Amznmktplace,Supplies and Services related expenditure,06/07/2021,18,Director of Portsmouth International Port
Other Supplies,Misc Speciality Retail,Amznmktplace,Supplies and Services related expenditure,06/07/2021,38.06,Director of Portsmouth International Port
Business To Business Facility/,Hardware Equipment/Supplies,Www.Windowware.Co.Uk,Premises related expenditure,06/07/2021,36.32,Director of Children's Services and Education
Facilities/Repair Supplies,Home Supply Warehouse Stores,B&q Direct,Premises related expenditure,06/07/2021,80,Director of Children's Services and Education
Transportation Conveyor,Passenger Railways,Trainline,Transport related expenditure,06/07/2021,61.33,Director of Children's Services and Education
Business Expenses/Services,Postage Stamps,Royal Mail Group Ltd,Supplies and Services related expenditure,06/07/2021,26.65,Director of Adult Services
Other Supplies,Discount Stores,Argos Ltd,Supplies and Services related expenditure,06/07/2021,206.95,Director of Adult Services
Other Supplies,Misc Speciality Retail,Amznmktplace,Supplies and Services related expenditure,06/07/2021,24.16,"Director of Housing, Neighbourhood and Building Services"
Transportation Conveyor,Local Commuter Transport,Hovertravel Ltd,Supplies and Services related expenditure,06/07/2021,26.8,Director of Children's Services and Education
Other Supplies,Misc Speciality Retail,Value Products Ltd,Supplies and Services related expenditure,06/07/2021,514.15,"Director of Housing, Neighbourhood and Building Services"
Miscellaneous,Civic/Social/Fraternal Assc,Highstreetvouchers,Supplies and Services related expenditure,06/07/2021,50,Director of Corporate Services
Type of Retail Store,Grocery Stores/Supermarkets,Tesco Stores 6012,Supplies and Services related expenditure,06/07/2021,6.2,Director of Children's Services and Education
Transportation Conveyor,Passenger Railways,Trainline.Com,Transport related expenditure,06/07/2021,25.63,Director of Children's Services and Education
Utility,Phone Serv/Equip Utility,Pageone,Supplies and Services related expenditure,06/07/2021,31.14,"Director of Culture, Leisure & Regulatory Services"
Type of Retail Store,Grocery Stores/Supermarkets,Tesco Stores 4611,Supplies and Services related expenditure,06/07/2021,12.54,"Director of Housing, Neighbourhood and Building Services"
Type of Retail Store,Grocery Stores/Supermarkets,Tesco Stores 4579,Supplies and Services related expenditure,06/07/2021,24.05,Director of Children's Services and Education
Medical,Lab/Med/Hospital Equipment,Incchoice,Supplies and Services related expenditure,06/07/2021,97.93,Director of Adult Services
Type of Retail Store,Grocery Stores/Supermarkets,Tesco Stores 4611,Supplies and Services related expenditure,06/07/2021,12.29,Director of Children's Services and Education
Type of Retail Store,Grocery Stores/Supermarkets,Wm Morrisons Store,Supplies and Services related expenditure,06/07/2021,30,Director of Adult Services
Other Supplies,Misc Speciality Retail,Amznmktplace Amazon.Co.Uk,Supplies and Services related expenditure,06/07/2021,10.82,"Director of Housing, Neighbourhood and Building Services"
Medical,Lab/Med/Hospital Equipment,Wightman & Parrish Ltd,Premises related expenditure,06/07/2021,41.02,Director of Adult Services
Other Supplies,Wholesale Clubs,Blueleaf Limited,Supplies and Services related expenditure,06/07/2021,254.1,Director of Adult Services
Business To Business Other Sup,Uniforms & Commercial Clothing,Alexandra Website,Supplies and Services related expenditure,06/07/2021,394.71,Director of Adult Services
Medical,Lab/Med/Hospital Equipment,Wightman & Parrish Ltd,Supplies and Services related expenditure,06/07/2021,53.72,Director of Adult Services
Medical,Lab/Med/Hospital Equipment,Wightman & Parrish Ltd,Supplies and Services related expenditure,06/07/2021,20.28,Director of Adult Services
Medical,Lab/Med/Hospital Equipment,Wightman & Parrish Ltd,Premises related expenditure,06/07/2021,368.28,Director of Adult Services
Type of Retail Store,Grocery Stores/Supermarkets,Www.Iceland.Co.Uk,Supplies and Services related expenditure,06/07/2021,-1.2,Director of Adult Services
Type of Retail Store,Grocery Stores/Supermarkets,Www.Iceland.Co.Uk,Supplies and Services related expenditure,06/07/2021,36.5,Director of Adult Services
Type of Retail Store,Grocery Stores/Supermarkets,Www.Iceland.Co.Uk,Supplies and Services related expenditure,06/07/2021,81,Director of Adult Services
Business Services,Business Services - Default,Total Access (UK),Premises related expenditure,06/07/2021,97.5,Director of Portsmouth International Port
Business To Business Facility/,Industrial Supplies - Def,Plasticpipe,Premises related expenditure,06/07/2021,143.69,Director of Portsmouth International Port
Other Supplies,Misc Speciality Retail,Amznmktplace,Supplies and Services related expenditure,06/07/2021,5.82,Director of Adult Services
Type of Retail Store,Grocery Stores/Supermarkets,Tesco Stores 6679,Supplies and Services related expenditure,06/07/2021,10.65,Director of Adult Services
Other Supplies,Department Stores,Southern Co-Op 0009,Supplies and Services related expenditure,06/07/2021,24.67,Director of Children's Services and Education
Type of Retail Store,Grocery Stores/Supermarkets,Tesco Store 3055,Supplies and Services related expenditure,06/07/2021,3.54,Director of Children's Services and Education
Type of Retail Store,Grocery Stores/Supermarkets,Tesco Store 3055,Supplies and Services related expenditure,06/07/2021,37.48,Director of Children's Services and Education
Type of Retail Store,Grocery Stores/Supermarkets,Tesco Store 3055,Supplies and Services related expenditure,06/07/2021,39.78,Director of Children's Services and Education
Other Supplies,Misc Speciality Retail,Amznmktplace,Supplies and Services related expenditure,06/07/2021,27.08,Director of Children's Services and Education
Other Supplies,Misc Speciality Retail,Amznmktplace,Supplies and Services related expenditure,06/07/2021,52.42,Director of Children's Services and Education
Other Supplies,Misc Speciality Retail,Amznmktplace,Supplies and Services related expenditure,06/07/2021,5.62,Director of Children's Services and Education
Other Supplies,Misc Speciality Retail,Amznmktplace,Supplies and Services related expenditure,06/07/2021,41.97,Director of Children's Services and Education
Auto/Vehicle Expenses,Toll And Bridge Fees,M6 Toll,Supplies and Services related expenditure,06/07/2021,6.57,Director of Children's Services and Education
Miscellaneous,Misc Personal Serv - Def,Portsmouth Cultural Trus,Supplies and Services related expenditure,06/07/2021,414,Director of Children's Services and Education
Business Expenses/Services,Postage Stamps,Post Office Counter,Supplies and Services related expenditure,06/07/2021,13.5,Director of Children's Services and Education
Other Supplies,Department Stores,Safetysuppl,Supplies and Services related expenditure,06/07/2021,210,Director of Portsmouth International Port
Medical,Lab/Med/Hospital Equipment,Wightman & Parrish,Supplies and Services related expenditure,06/07/2021,52.96,Director of Adult Services
Other Supplies,Wholesale Clubs,Blueleaf Limited,Supplies and Services related expenditure,06/07/2021,1651.7,Director of Adult Services
Transportation Conveyor,Passenger Railways,Thetrainline.Com,Supplies and Services related expenditure,06/07/2021,19.63,Director of Children's Services and Education
Business To Business Eqpt/Furn,Stationery/Office Supplies,Www.Banneruk.Com,Supplies and Services related expenditure,06/07/2021,21.8,Director of Adult Services
Business Services,Business Services - Default,Voucher Express,Supplies and Services related expenditure,06/07/2021,42.5,Director of Children's Services and Education
Other Supplies,Misc Gen Merchandise - Def,Sp * Pilgrim Gifts,Supplies and Services related expenditure,06/07/2021,90,Director of Children's Services and Education
Miscellaneous,Member Organizations - Def,Www.Cips.Org,Employees related expenditure,06/07/2021,60,Director of Finance & Resources
Miscellaneous,Member Organizations - Def,Www.Cips.Org,Supplies and Services related expenditure,06/07/2021,187,Director of Finance & Resources
Type of Retail Store,Grocery Stores/Supermarkets,Tesco Stores 6002,Supplies and Services related expenditure,06/07/2021,11.88,"Director of Housing, Neighbourhood and Building Services"
Type of Retail Store,Grocery Stores/Supermarkets,Lidl Gb,Supplies and Services related expenditure,06/07/2021,82.48,"Director of Housing, Neighbourhood and Building Services"
Hotels And Motels,Hotel Ibis,Hotel Ibis,Supplies and Services related expenditure,06/07/2021,71.5,Director of Children's Services and Education
Other Supplies,Misc Speciality Retail,Amznmktplace Amazon.Co.Uk,Supplies and Services related expenditure,06/07/2021,20,"Director of Housing, Neighbourhood and Building Services"
Business Expenses/Services,Books/Periodicals/Newspapers,Www.Pirongs.Co.Uk,Supplies and Services related expenditure,06/07/2021,9,Director of Children's Services and Education
Amusement/Entertainment,Amusement/Rec Serv - Def,Peter Ashley Activity Cen,Agency and Third Party Payments related expenditure,06/07/2021,27,Director of Children's Services and Education
Facilities/Repair Supplies,Hardware Stores,Home Bargains,Supplies and Services related expenditure,06/07/2021,3.57,Director of Children's Services and Education
Facilities/Repair Supplies,Hardware Stores,Home Bargains,Supplies and Services related expenditure,06/07/2021,0.83,Director of Children's Services and Education
Type of Retail Store,Grocery Stores/Supermarkets,Aldi Stores Ltd,Supplies and Services related expenditure,06/07/2021,12.73,Director of Children's Services and Education
Type of Retail Store,Grocery Stores/Supermarkets,Aldi Stores Ltd,Supplies and Services related expenditure,06/07/2021,13.3,Director of Children's Services and Education
Business To Business Eqpt/Furn,Stationery/Office Supplies,Www.Banneruk.Com,Supplies and Services related expenditure,06/07/2021,189.54,"Director of Culture, Leisure & Regulatory Services"
Transportation Conveyor,Bus Lines/Charter/Tour,First Bus - Web,Transport related expenditure,06/07/2021,4.3,Director of Regeneration
Government Service,Govt Serv - Default,Pcc Internet Payment,Supplies and Services related expenditure,06/07/2021,11,Director of Regeneration
Facilities/Repair Supplies,Home Supply Warehouse Stores,B & Q 1260,Supplies and Services related expenditure,06/07/2021,15.77,"Director of Housing, Neighbourhood and Building Services"
Other Supplies,Misc Gen Merchandise - Def,Replacement Keys Ltd,Supplies and Services related expenditure,06/07/2021,17.5,"Director of Housing, Neighbourhood and Building Services"
Equipment And Furniture,Phone Serv/Equip Non-Util,Paypal,Supplies and Services related expenditure,06/07/2021,82.8,Director of Finance & Resources
Business To Business Eqpt/Furn,Stationery/Office Supplies,Www.Banneruk.Com,Supplies and Services related expenditure,06/07/2021,15.4,"Director of Culture, Leisure & Regulatory Services"
Type of Retail Store,Grocery Stores/Supermarkets,One Stop 1339,Supplies and Services related expenditure,06/07/2021,6.3,Director of Children's Services and Education
Type of Retail Store,Electronics Sales,Paypal,Supplies and Services related expenditure,06/07/2021,51.75,Director of Children's Services and Education
Clothing Services,Misc Apparel/Access Shops,Etsy,Supplies and Services related expenditure,06/07/2021,39.96,Director of Children's Services and Education
Facilities/Repair Supplies,Lawn/Garden Supply/Nursery,M & S Enterprises,Supplies and Services related expenditure,06/07/2021,148.54,"Director of Housing, Neighbourhood and Building Services"
Type of Retail Store,Grocery Stores/Supermarkets,Lidl Gb Waterlooville,Supplies and Services related expenditure,06/07/2021,1.58,"Director of Housing, Neighbourhood and Building Services"
Type of Retail Store,Grocery Stores/Supermarkets,Lidl Gb Waterlooville,Supplies and Services related expenditure,06/07/2021,5.7,"Director of Housing, Neighbourhood and Building Services"
Freight/Courier/Warehouse Svcs,Public Warehousing,Www.Safestore.Co.Uk,Supplies and Services related expenditure,06/07/2021,38.99,Director of Children's Services and Education
Equipment And Furniture,Household Appliance Stores,Tlc Southern,Supplies and Services related expenditure,06/07/2021,118.35,"Director of Culture, Leisure & Regulatory Services"
Other Supplies,Misc Speciality Retail,Amznmktplace,Supplies and Services related expenditure,06/07/2021,9.15,Director of Children's Services and Education
Business To Business Services,Misc Publishing & Printing,Uk Flyers,Supplies and Services related expenditure,06/07/2021,54,Chief Exec
Government Service,Govt Serv - Default,Dvla Driver Online,Supplies and Services related expenditure,06/07/2021,34,"Director of Housing, Neighbourhood and Building Services"
Type of Retail Store,Candy/Nut/Confection Store,The Rock Shop Gift Sho,Supplies and Services related expenditure,06/07/2021,10,Director of Children's Services and Education
Government Service,Schools - Default,Www.Qualsafe.Com,Employees related expenditure,06/07/2021,644.9,Director of Children's Services and Education
Business To Business Eqpt/Furn,Computer Software Stores,Stack* Zerossl,Supplies and Services related expenditure,06/07/2021,34.91,Director of Children's Services and Education
Facilities/Repair Supplies,Bicycle Shops/Sales/Service,Halfords 0852,Supplies and Services related expenditure,06/07/2021,17.49,Director of Adult Services
Facilities/Repair Supplies,Home Supply Warehouse Stores,B & Q 1260,Supplies and Services related expenditure,06/07/2021,24.54,Director of Adult Services
Business Services,Business Services - Default,Intonation Ltd,Supplies and Services related expenditure,06/07/2021,106.56,Director of Portsmouth International Port
Transportation Conveyor,Passenger Railways,Www.Southwesternrailwa,Transport related expenditure,06/07/2021,17.3,NON REVENUE
Type of Retail Store,Grocery Stores/Supermarkets,Tesco Stores 6002,Supplies and Services related expenditure,06/07/2021,9.7,Director of Children's Services and Education
Type of Retail Store,Grocery Stores/Supermarkets,Www.Iceland.Co.Uk,Supplies and Services related expenditure,06/07/2021,37,Director of Children's Services and Education
Medical,Med/Health Services - Def,Brit Psychological,Supplies and Services related expenditure,06/07/2021,34.17,Director of Children's Services and Education
Business To Business Other Sup,Uniforms & Commercial Clothing,Ethicstar Ltd,Supplies and Services related expenditure,06/07/2021,508.72,Director of Children's Services and Education
Other Supplies,Misc Speciality Retail,Amznmktplace Amazon.Co.Uk,Supplies and Services related expenditure,06/07/2021,19.95,Director of Children's Services and Education
Other Supplies,Misc Speciality Retail,Amznmktplace Amazon.Co.Uk,Supplies and Services related expenditure,06/07/2021,91.24,Director of Children's Services and Education
Other Supplies,Misc Speciality Retail,Amznmktplace Amazon.Co.Uk,Supplies and Services related expenditure,06/07/2021,0.06,Director of Children's Services and Education
Other Supplies,Misc Speciality Retail,Amznmktplace Amazon.Co.Uk,Supplies and Services related expenditure,06/07/2021,16.5,Director of Children's Services and Education
Type of Retail Store,Grocery Stores/Supermarkets,Tesco Stores 4611,Supplies and Services related expenditure,06/07/2021,10,Director of Children's Services and Education
Other Supplies,Discount Stores,Argos Ltd,Supplies and Services related expenditure,06/07/2021,113.95,Director of Children's Services and Education
Other Supplies,Department Stores,Southern Co-Op 0328,Supplies and Services related expenditure,06/07/2021,14,Director of Children's Services and Education
Facilities/Repair Supplies,Automotive Parts Stores,Westleigh Motor Factor,Transport related expenditure,06/07/2021,140,"Director of Housing, Neighbourhood and Building Services"
Business To Business Facility/,Industrial Supplies - Def,Arco Ltd,Supplies and Services related expenditure,06/07/2021,101.9,Director of Regeneration
Equipment And Furniture,Furniture/Equip Stores,Cumberland House,Agency and Third Party Payments related expenditure,06/07/2021,3.33,Director of Children's Services and Education
Type of Retail Store,Grocery Stores/Supermarkets,Tesco Stores 4579,Supplies and Services related expenditure,06/07/2021,21.86,Director of Children's Services and Education
Miscellaneous,Child Care Services,Www.Ymca-Fg.Org,Agency and Third Party Payments related expenditure,06/07/2021,62.5,Director of Children's Services and Education
Medical,Lab/Med/Hospital Equipment,Wightman & Parrish Ltd,Premises related expenditure,06/07/2021,13.05,"Director of Housing, Neighbourhood and Building Services"
Business To Business Eqpt/Furn,Stationery/Office Supplies,Yorkshire Purchasing O,Supplies and Services related expenditure,06/07/2021,7.49,Director of Children's Services and Education
Business To Business Eqpt/Furn,Stationery/Office Supplies,Pts,Supplies and Services related expenditure,06/07/2021,49.4,Director of Children's Services and Education
Business To Business Eqpt/Furn,Stationery/Office Supplies,Www.Abbeystationery.Com,Supplies and Services related expenditure,06/07/2021,114,Director of Children's Services and Education
Business To Business Eqpt/Furn,Computer Software Stores,Schoolstickers.Com,Supplies and Services related expenditure,06/07/2021,152.55,Director of Children's Services and Education
Miscellaneous,Charitable/Soc Service Orgs,Www.Coram.Org.Uk,Supplies and Services related expenditure,06/07/2021,21.95,Director of Children's Services and Education
Miscellaneous,Charitable/Soc Service Orgs,Www.Coram.Org.Uk,Supplies and Services related expenditure,06/07/2021,25,Director of Children's Services and Education
Personal Service Provider,Mgmt/Consult/Public Rel Ser,Tvlicensing.Co.Uk,Supplies and Services related expenditure,06/07/2021,-159,Director of Adult Services
Transportation Conveyor,"Parking Lots, Meters, Garages",Ncp Portsmouth.,Transport related expenditure,06/07/2021,1,Director of Children's Services and Education
Other Supplies,Misc Speciality Retail,Amznmktplace Amazon.Co.Uk,Supplies and Services related expenditure,06/07/2021,16.66,"Director of Housing, Neighbourhood and Building Services"
Other Supplies,Misc Speciality Retail,Amznmktplace Amazon.Co.Uk,Supplies and Services related expenditure,06/07/2021,10.98,"Director of Housing, Neighbourhood and Building Services"
Automobile Services & Supplies,Service Stations,Rontec,Supplies and Services related expenditure,06/07/2021,1.7,Director of Children's Services and Education
Medical,Lab/Med/Hospital Equipment,Wightman & Parrish,Premises related expenditure,07/07/2021,72,"Director of Housing, Neighbourhood and Building Services"
Medical,Lab/Med/Hospital Equipment,Wightman & Parrish,Premises related expenditure,07/07/2021,621.5,"Director of Housing, Neighbourhood and Building Services"
Business Services,Business Services - Default,Fast Key Services Limi,Supplies and Services related expenditure,07/07/2021,6.11,"Director of Housing, Neighbourhood and Building Services"
Auto/Vehicle Expenses,Toll And Bridge Fees,Dart-Charge,Supplies and Services related expenditure,07/07/2021,2.5,Director of Children's Services and Education
Business Expenses/Services,Stationery Stores,Www.Cosdirect.Co.Uk,Supplies and Services related expenditure,07/07/2021,136.36,Director of Adult Services
Type of Retail Store,Hobby/Toy/Game Stores,Collaborate And Innovate,Supplies and Services related expenditure,07/07/2021,105.47,Director of Children's Services and Education
Other Supplies,Discount Stores,Poundland Ltd 1477,Supplies and Services related expenditure,07/07/2021,4.17,"Director of Housing, Neighbourhood and Building Services"
Business Expenses/Services,Postage Stamps,Post Office Counter,Supplies and Services related expenditure,07/07/2021,5.19,Director of Children's Services and Education
Other Supplies,Misc Gen Merchandise - Def,B&m Retail Ltd,Supplies and Services related expenditure,07/07/2021,17.5,Director of Adult Services
Type of Retail Store,Grocery Stores/Supermarkets,Asda Stores,Capital related expenditure,07/07/2021,29.73,"Capital - Culture, Leisure & Economic Development"
Facilities/Repair Supplies,Lawn/Garden Supply/Nursery,Rigby Taylor Limited,Supplies and Services related expenditure,07/07/2021,288.55,"Director of Culture, Leisure & Regulatory Services"
Other Supplies,Misc Gen Merchandise - Def,B&m Retail Ltd,Supplies and Services related expenditure,07/07/2021,8.3,Director of Children's Services and Education
Type of Retail Store,Grocery Stores/Supermarkets,Tesco Store 3055,Supplies and Services related expenditure,07/07/2021,1.75,Director of Children's Services and Education
Type of Retail Store,Grocery Stores/Supermarkets,Tesco Store 3055,Supplies and Services related expenditure,07/07/2021,12.08,Director of Children's Services and Education
Business To Business Facility/,Hardware Equipment/Supplies,Radmore And Tucker Ltd,Supplies and Services related expenditure,07/07/2021,79.34,"Director of Housing, Neighbourhood and Building Services"
Government Service,Govt Serv - Default,Www.Moneyclaim.Gov,Supplies and Services related expenditure,07/07/2021,115,"Director of Housing, Neighbourhood and Building Services"
Type of Retail Store,Grocery Stores/Supermarkets,Asda Stores,Supplies and Services related expenditure,07/07/2021,32.92,Director of Children's Services and Education
Other Supplies,Misc Gen Merchandise - Def,Wilko Retail Limited,Supplies and Services related expenditure,07/07/2021,140,Director of Children's Services and Education
Type of Retail Store,Grocery Stores/Supermarkets,Asda Groceries Online,Supplies and Services related expenditure,07/07/2021,61,Director of Children's Services and Education
Digital Goods,Digital Goods - Games,Playstationnetwork,Agency and Third Party Payments related expenditure,07/07/2021,6.49,Director of Children's Services and Education
Type of Retail Store,Grocery Stores/Supermarkets,Tesco Stores 4579,Supplies and Services related expenditure,07/07/2021,30.62,Director of Children's Services and Education
Other Supplies,Misc Speciality Retail,Amznmktplace,Supplies and Services related expenditure,07/07/2021,38.33,Director of Children's Services and Education
Utility,Phone Serv/Equip Utility,Virgin Media Pymts,Supplies and Services related expenditure,07/07/2021,90.38,Director of Children's Services and Education
Other Supplies,Misc Speciality Retail,Amznmktplace Amazon.Co.Uk,Supplies and Services related expenditure,07/07/2021,45.8,Director of Children's Services and Education
Other Supplies,Misc Speciality Retail,Amznmktplace Amazon.Co.Uk,Supplies and Services related expenditure,07/07/2021,49.96,Director of Children's Services and Education
Business To Business Eqpt/Furn,Stationery/Office Supplies,Www.Banneruk.Com,Supplies and Services related expenditure,07/07/2021,35.5,"Director of Culture, Leisure & Regulatory Services"
Medical,Opticians,Visionplus 00057000por,Supplies and Services related expenditure,07/07/2021,49.9,Director of Children's Services and Education
Transportation Conveyor,Local Commuter Transport,Www.Hovertravel.Com,Transport related expenditure,07/07/2021,25.1,Director of Children's Services and Education
Type of Retail Store,Grocery Stores/Supermarkets,Tesco Stores 4611,Supplies and Services related expenditure,07/07/2021,40,Director of Children's Services and Education
Transportation Conveyor,Passenger Railways,Swrailway Tck Off,Transport related expenditure,07/07/2021,72.6,Director of Children's Services and Education
Facilities/Repair Supplies,Glass/Paint/Wallpaper Store,Johnstones Dec Centre,Premises related expenditure,07/07/2021,10.9,"Director of Housing, Neighbourhood and Building Services"
Facilities/Repair Supplies,Home Supply Warehouse Stores,B & Q 1260,Premises related expenditure,07/07/2021,34.31,"Director of Housing, Neighbourhood and Building Services"
Other Supplies,Misc Speciality Retail,Amznmktplace,Supplies and Services related expenditure,07/07/2021,11.66,Director of Adult Services
Other Supplies,Misc Speciality Retail,Amznmktplace,Supplies and Services related expenditure,07/07/2021,14.49,Director of Adult Services
Type of Retail Store,Misc Food Stores - Default,Andres Food Bar,Supplies and Services related expenditure,07/07/2021,93.5,Director of Children's Services and Education
Other Supplies,Discount Stores,Argos Ltd,Supplies and Services related expenditure,07/07/2021,-16.67,Director of Adult Services
Other Supplies,Misc Speciality Retail,Amznmktplace,Supplies and Services related expenditure,07/07/2021,36.66,Director of Adult Services
Business To Business Eqpt/Furn,Stationery/Office Supplies,Www.Banneruk.Com,Supplies and Services related expenditure,07/07/2021,163.4,Director of Regeneration
Business To Business Services,Misc Publishing & Printing,Service Point,Supplies and Services related expenditure,07/07/2021,319.84,Director of Regeneration
Transportation Conveyor,Passenger Railways,Trainline,Transport related expenditure,07/07/2021,18.17,Director of Children's Services and Education
Type of Retail Store,Grocery Stores/Supermarkets,Tesco Gift Card,Supplies and Services related expenditure,07/07/2021,25,Director of Children's Services and Education
Business Services,Business Services - Default,Debra,Supplies and Services related expenditure,07/07/2021,50,Director of Children's Services and Education
Business Services,Business Services - Default,Debra,Supplies and Services related expenditure,07/07/2021,50,Director of Children's Services and Education
Equipment And Furniture,Furniture/Equip Stores,Ikea Ltd 125 Southampton,Supplies and Services related expenditure,07/07/2021,247.92,Director of Children's Services and Education
Other Supplies,Wholesale Clubs,Blueleaf Limited,Supplies and Services related expenditure,07/07/2021,-476.41,Director of Adult Services
Clothing Services,Misc Apparel/Access Shops,Simply Safety Group,Supplies and Services related expenditure,07/07/2021,71.54,"Director of Housing, Neighbourhood and Building Services"
Business To Business Facility/,Electrical Parts/Equipment,Edmundson Electrical,Premises related expenditure,07/07/2021,106.66,Director of Portsmouth International Port
Business To Business Facility/,Hardware Equipment/Supplies,Cromwell Tools,Premises related expenditure,07/07/2021,494.57,Director of Portsmouth International Port
Other Supplies,Misc Speciality Retail,Amznmktplace,Supplies and Services related expenditure,07/07/2021,25.95,"Director of Housing, Neighbourhood and Building Services"
Type of Retail Store,Grocery Stores/Supermarkets,Lidl Gb Portsmouth,Supplies and Services related expenditure,07/07/2021,23.93,Director of Adult Services
Government Service,Govt Serv - Default,Hampshire County Counc,Transport related expenditure,07/07/2021,52.32,Director of Children's Services and Education
Type of Retail Store,Grocery Stores/Supermarkets,Wm Morrisons Store,Supplies and Services related expenditure,07/07/2021,16.55,Director of Children's Services and Education
Type of Retail Store,Grocery Stores/Supermarkets,Wm Morrisons Store,Supplies and Services related expenditure,07/07/2021,5.29,Director of Children's Services and Education
Business To Business Facility/,Industrial Supplies - Def,Arco Limited (Ahpp),Supplies and Services related expenditure,07/07/2021,62.44,Director of Portsmouth International Port
Other Supplies,Misc Speciality Retail,Amznmktplace,Supplies and Services related expenditure,07/07/2021,14.98,Director of Children's Services and Education
Business To Business Eqpt/Furn,Stationery/Office Supplies,Dactyl Publishing Limited,Supplies and Services related expenditure,07/07/2021,240,Director of Children's Services and Education
Transportation Conveyor,Local Commuter Transport,Www.Hovertravel.Com,Transport related expenditure,07/07/2021,25.1,Director of Children's Services and Education
Transportation Conveyor,Passenger Railways,Swrailway Tck Off,Supplies and Services related expenditure,07/07/2021,112.7,Director of Children's Services and Education
Equipment And Furniture,Furniture/Equip Stores,Www.Therange.Co.Uk,Supplies and Services related expenditure,07/07/2021,199.98,Director of Children's Services and Education
Other Supplies,Misc Speciality Retail,Amznmktplace,Supplies and Services related expenditure,07/07/2021,18.32,Director of Portsmouth International Port
Other Supplies,Misc Gen Merchandise - Def,B&m 566 - Farlington,Premises related expenditure,07/07/2021,32.5,Director of Children's Services and Education
Other Supplies,Misc Gen Merchandise - Def,B&m 566 - Farlington,Supplies and Services related expenditure,07/07/2021,3.91,Director of Children's Services and Education
Other Supplies,Misc Gen Merchandise - Def,B&m 566 - Farlington,Supplies and Services related expenditure,07/07/2021,6.48,Director of Children's Services and Education
Type of Retail Store,Grocery Stores/Supermarkets,Sainsburys S/mkt,Supplies and Services related expenditure,07/07/2021,56.18,Director of Children's Services and Education
Miscellaneous,Charitable/Soc Service Orgs,Ifa,Supplies and Services related expenditure,07/07/2021,130,Director of Adult Services
Government Service,Govt Serv - Default,Portsmouth City Co,Transport related expenditure,07/07/2021,31.67,Director of Children's Services and Education
Hotels And Motels,Lodging/Hotels/Motels/Resorts,Gamston Lock Lodge,Supplies and Services related expenditure,07/07/2021,47.62,Director of Children's Services and Education
Other Supplies,Misc Speciality Retail,Amznmktplace,Premises related expenditure,07/07/2021,11.63,Director of Adult Services
Other Supplies,Misc Speciality Retail,Amznbusiness,Premises related expenditure,07/07/2021,12.5,Director of Adult Services
Business To Business Eqpt/Furn,Stationery/Office Supplies,Pts,Supplies and Services related expenditure,07/07/2021,75.6,Director of Children's Services and Education
Type of Retail Store,Grocery Stores/Supermarkets,Lidl Gb,Supplies and Services related expenditure,07/07/2021,100.56,"Director of Housing, Neighbourhood and Building Services"
Type of Retail Store,Grocery Stores/Supermarkets,Asda Stores,Supplies and Services related expenditure,07/07/2021,22.5,Director of Children's Services and Education
Transportation Conveyor,"Parking Lots, Meters, Garages",Gunwharf Quays,Transport related expenditure,07/07/2021,2.42,Director of Children's Services and Education
Type of Retail Store,Grocery Stores/Supermarkets,Tesco Stores 4579,Supplies and Services related expenditure,07/07/2021,15.83,Director of Children's Services and Education
Type of Retail Store,Grocery Stores/Supermarkets,Tesco Store 3048,Premises related expenditure,07/07/2021,18.75,Director of Children's Services and Education
Type of Retail Store,Sports/Riding Apparel Store,Nikepos_uk,Supplies and Services related expenditure,07/07/2021,55.9,Director of Children's Services and Education
Medical,Opticians,Visionplus 00057000por,Supplies and Services related expenditure,07/07/2021,47.61,Director of Children's Services and Education
Medical,Opticians,Visionplus 00057000por,Supplies and Services related expenditure,07/07/2021,17.83,Director of Children's Services and Education
Transportation Conveyor,Passenger Railways,Swrailwayselfserve,Transport related expenditure,07/07/2021,12.5,Director of Children's Services and Education
Government Service,Govt Serv - Default,Portsmouth City Co,Transport related expenditure,07/07/2021,51,Director of Children's Services and Education
Other Supplies,Misc Speciality Retail,Amznbusiness,Supplies and Services related expenditure,07/07/2021,198.1,Director of Corporate Services
Business Services,Business Services - Default,Eb *webinar Exploring,Employees related expenditure,07/07/2021,25,Director of Children's Services and Education
Type of Retail Store,Dairy Product Stores,Eastney Convenience Store,Supplies and Services related expenditure,07/07/2021,2.44,Director of Adult Services
Other Supplies,Wholesale Clubs,Www.Thefruitbasket.Net,Supplies and Services related expenditure,07/07/2021,71.46,"Director of Housing, Neighbourhood and Building Services"
Miscellaneous,Charitable/Soc Service Orgs,Award Scheme Ltd,Supplies and Services related expenditure,07/07/2021,23,"Director of Housing, Neighbourhood and Building Services"
Miscellaneous,Charitable/Soc Service Orgs,Award Scheme Ltd,Supplies and Services related expenditure,07/07/2021,138,"Director of Housing, Neighbourhood and Building Services"
Medical,Lab/Med/Hospital Equipment,Wightman & Parrish,Premises related expenditure,07/07/2021,25.74,"Director of Housing, Neighbourhood and Building Services"
Business To Business Facility/,Industrial Supplies - Def,Arco Limited (Ahpp),Supplies and Services related expenditure,07/07/2021,43.99,"Director of Housing, Neighbourhood and Building Services"
Automobile Rental,Automobile Rental Agency,Southern Motor Contrac,Transport related expenditure,07/07/2021,0.03,Director of Regeneration
Automobile Rental,Automobile Rental Agency,Southern Motor Contrac,Transport related expenditure,07/07/2021,686.3,Director of Regeneration
Automobile Rental,Automobile Rental Agency,Southern Motor Contrac,Transport related expenditure,07/07/2021,5460.19,Director of Regeneration
Miscellaneous,Member Organizations - Def,House Of Pmo Ltd,Employees related expenditure,07/07/2021,30,Director of Regeneration
Business Services,Business Services - Default,Www.Crowdcontrolsoluti,Premises related expenditure,07/07/2021,897.65,Director of Children's Services and Education
Medical,Lab/Med/Hospital Equipment,Wightman & Parrish,Premises related expenditure,07/07/2021,13.92,"Director of Housing, Neighbourhood and Building Services"
Miscellaneous,Agricultural Co-Operativ,Paypal,Supplies and Services related expenditure,07/07/2021,19.43,"Director of Housing, Neighbourhood and Building Services"
Type of Retail Store,Grocery Stores/Supermarkets,Gillett Copnor Rd,Supplies and Services related expenditure,07/07/2021,2.25,Director of Children's Services and Education
Facilities/Repair Supplies,Lumber/Build. Supply Stores,Toolstation Ltd,Premises related expenditure,07/07/2021,3.6,"Director of Housing, Neighbourhood and Building Services"
Other Supplies,Misc Speciality Retail,Firstaid4less.Co.Uk,Supplies and Services related expenditure,07/07/2021,104.8,"Director of Housing, Neighbourhood and Building Services"
Business To Business Services,Information Retrieval Services,Www.Restore.Co.Uk,Supplies and Services related expenditure,07/07/2021,8.97,Solent LEP
Transportation Conveyor,Bus Lines/Charter/Tour,H. Luckett And Co,Supplies and Services related expenditure,07/07/2021,475,NON REVENUE
Facilities/Repair Supplies,Home Supply Warehouse Stores,B & Q 1260,Supplies and Services related expenditure,07/07/2021,5.42,"Director of Housing, Neighbourhood and Building Services"
Other Supplies,Misc Speciality Retail,Amznmktplace,Supplies and Services related expenditure,07/07/2021,32.95,Director of Children's Services and Education
Other Supplies,Misc Speciality Retail,Amznmktplace,Supplies and Services related expenditure,07/07/2021,4.75,Director of Children's Services and Education
Other Supplies,Misc Speciality Retail,Www.Connevans.Com,Supplies and Services related expenditure,07/07/2021,84.6,Director of Children's Services and Education
Other Supplies,Misc Speciality Retail,Www.Connevans.Com,Supplies and Services related expenditure,07/07/2021,5.3,Director of Children's Services and Education
Other Supplies,Misc Speciality Retail,Amznmktplace,Supplies and Services related expenditure,07/07/2021,5.74,Director of Adult Services
Other Supplies,Misc Speciality Retail,Amznmktplace,Supplies and Services related expenditure,07/07/2021,4.15,Director of Adult Services
Utility,Phone Serv/Equip Utility,Zoom.Us 888-799-9666,Supplies and Services related expenditure,07/07/2021,11.99,Director of Corporate Services
Utility,Phone Serv/Equip Utility,Zoom.Us 888-799-9666,Supplies and Services related expenditure,07/07/2021,11.99,Chief Exec
Type of Retail Store,Grocery Stores/Supermarkets,Tesco Stores 5153,Supplies and Services related expenditure,07/07/2021,14.65,Director of Children's Services and Education
Business To Business Other Sup,Uniforms & Commercial Clothing,Alexandra Website,Supplies and Services related expenditure,07/07/2021,63.42,"Director of Housing, Neighbourhood and Building Services"
Type of Retail Store,Grocery Stores/Supermarkets,Tesco Stores 6577,Supplies and Services related expenditure,07/07/2021,5.5,Director of Adult Services
Other Supplies,Misc Speciality Retail,Amznmktplace,Supplies and Services related expenditure,07/07/2021,33.12,Director of Children's Services and Education
Other Supplies,Misc Speciality Retail,Amznmktplace,Supplies and Services related expenditure,07/07/2021,73.1,Director of Children's Services and Education
Eating And Drinking Places,Fast Food Restaurants,Starbucks Coffee,Supplies and Services related expenditure,07/07/2021,2.17,Director of Children's Services and Education
Type of Retail Store,Dairy Product Stores,Eastney Convenience Store,Supplies and Services related expenditure,07/07/2021,6.43,Director of Adult Services
Government Service,Business/Secretarial School,Nef Consulting Ltd,Employees related expenditure,07/07/2021,495,"Director of Housing, Neighbourhood and Building Services"
Business Expenses/Services,Postage Stamps,Post Office Counter,Supplies and Services related expenditure,07/07/2021,29.94,Director of Children's Services and Education
Medical,Lab/Med/Hospital Equipment,Wightman & Parrish,Premises related expenditure,07/07/2021,53.72,Director of Adult Services
Business To Business Eqpt/Furn,Computer Software Stores,Sp * Covering All Occa,Supplies and Services related expenditure,07/07/2021,43.3,"Director of Culture, Leisure & Regulatory Services"
Business To Business Facility/,Industrial Supplies - Def,Arco Limited (Sap),Supplies and Services related expenditure,07/07/2021,47.08,"Director of Housing, Neighbourhood and Building Services"
Facilities Maintenance,Clean/Maint/Janitoral Serv,Www.Ionicsystems.C,Supplies and Services related expenditure,07/07/2021,90,"Director of Housing, Neighbourhood and Building Services"
Medical,Lab/Med/Hospital Equipment,Wightman & Parrish,Premises related expenditure,07/07/2021,50.41,Director of Children's Services and Education
Automobile Services & Supplies,Service Stations,Shell Victory,Transport related expenditure,07/07/2021,33.35,"Director of Culture, Leisure & Regulatory Services"
Eating And Drinking Places,Eating Places/Restaurants,Purple Mango,Supplies and Services related expenditure,06/07/2021,39.04,Director of Children's Services and Education
Auto/Vehicle Expenses,Toll And Bridge Fees,Tfl Business Bops Web,Supplies and Services related expenditure,07/07/2021,15,Director of Children's Services and Education
Business To Business Facility/,Electrical Parts/Equipment,Premier Farnell,Supplies and Services related expenditure,07/07/2021,105.01,Director of Regeneration
Transportation Conveyor,"Parking Lots, Meters, Garages",Ncp Craswell Street,Supplies and Services related expenditure,07/07/2021,1.2,Director of Children's Services and Education
Other Supplies,Misc Speciality Retail,Amznmktplace Amazon.Co.Uk,Supplies and Services related expenditure,07/07/2021,32.64,Director of Children's Services and Education
Other Supplies,Misc Speciality Retail,Amznmktplace Amazon.Co.Uk,Supplies and Services related expenditure,07/07/2021,76.56,Director of Children's Services and Education
Business To Business Facility/,Electrical Parts/Equipment,Rs Components,Supplies and Services related expenditure,07/07/2021,41.88,Director of Regeneration
Other Supplies,Misc Speciality Retail,Amznmktplace,Supplies and Services related expenditure,08/07/2021,18.32,Director of Adult Services
Other Supplies,Misc Speciality Retail,Value Products Ltd,Supplies and Services related expenditure,08/07/2021,98,"Director of Culture, Leisure & Regulatory Services"
Other Supplies,Misc Speciality Retail,Amznmktplace,Supplies and Services related expenditure,08/07/2021,21.64,Director of Portsmouth International Port
Business To Business Facility/,Industrial Supplies - Def,Arco Limited (Sap),Supplies and Services related expenditure,08/07/2021,99,Director of Regeneration
Eating And Drinking Places,Fast Food Restaurants,Costa Coffee 43040140,Supplies and Services related expenditure,08/07/2021,5.42,Director of Children's Services and Education
Other Supplies,Misc Gen Merchandise - Def,Wilko Retail Limited,Supplies and Services related expenditure,08/07/2021,6.67,Director of Children's Services and Education
Other Supplies,Misc Gen Merchandise - Def,Wilko Retail Limited,Supplies and Services related expenditure,08/07/2021,26.46,Director of Children's Services and Education
Business To Business Eqpt/Furn,Stationery/Office Supplies,Www.Banneruk.Com,Supplies and Services related expenditure,08/07/2021,26.88,Director of Finance & Resources
Facilities/Repair Supplies,Lumber/Build. Supply Stores,Screwfix Direct,Supplies and Services related expenditure,08/07/2021,30,"Capital - Culture, Leisure & Economic Development"
Facilities/Repair Supplies,Hardware Stores,Toolstation Uk,Premises related expenditure,08/07/2021,66.63,Director of Children's Services and Education
Transportation Conveyor,Local Commuter Transport,Wightlink,Transport related expenditure,08/07/2021,163.31,"Director of Culture, Leisure & Regulatory Services"
Other Supplies,Misc Speciality Retail,Amznmktplace,Supplies and Services related expenditure,08/07/2021,9.01,Director of Children's Services and Education
Other Supplies,Misc Speciality Retail,Amznmktplace,Premises related expenditure,08/07/2021,27.92,Director of Children's Services and Education
Other Supplies,Misc Speciality Retail,Www.Rainbowsafetey.Co.Uk,Agency and Third Party Payments related expenditure,08/07/2021,56.5,Director of Children's Services and Education
Facilities Maintenance,Clean/Maint/Janitoral Serv,Janitorial Direct Ltd,Supplies and Services related expenditure,08/07/2021,32.19,"Director of Housing, Neighbourhood and Building Services"
Eating And Drinking Places,Fast Food Restaurants,McDonalds,Supplies and Services related expenditure,08/07/2021,2.07,Director of Children's Services and Education
Automobile Services & Supplies,Service Stations,Tesco Pfs 4274,Transport related expenditure,08/07/2021,8.33,Director of Children's Services and Education
Facilities/Repair Supplies,Home Supply Warehouse Stores,B & Q 1260,Premises related expenditure,08/07/2021,16.66,Director of Children's Services and Education
Facilities/Repair Supplies,Home Supply Warehouse Stores,B & Q 1260,Premises related expenditure,08/07/2021,12.12,Director of Children's Services and Education
Type of Retail Store,Grocery Stores/Supermarkets,Tesco Stores 4579,Supplies and Services related expenditure,08/07/2021,10.21,Director of Children's Services and Education
Type of Retail Store,Grocery Stores/Supermarkets,Tesco Stores 4579,Supplies and Services related expenditure,08/07/2021,8.5,Director of Children's Services and Education
Type of Retail Store,Grocery Stores/Supermarkets,Tesco Stores 4579,Supplies and Services related expenditure,08/07/2021,4.75,Director of Children's Services and Education
Type of Retail Store,Grocery Stores/Supermarkets,Tesco Stores 4579,Premises related expenditure,08/07/2021,11.67,Director of Children's Services and Education
Type of Retail Store,Grocery Stores/Supermarkets,Tesco Stores 4579,Premises related expenditure,08/07/2021,19.79,Director of Children's Services and Education
Type of Retail Store,Grocery Stores/Supermarkets,Tesco Stores 4579,Supplies and Services related expenditure,08/07/2021,48.81,Director of Children's Services and Education
Business To Business Eqpt/Furn,Stationery/Office Supplies,Www.Banneruk.Com,Supplies and Services related expenditure,08/07/2021,8.49,"Director of Culture, Leisure & Regulatory Services"
Type of Retail Store,Grocery Stores/Supermarkets,Tesco Stores 4611,Supplies and Services related expenditure,08/07/2021,25,Director of Children's Services and Education
Transportation Conveyor,Passenger Railways,Swrailway Tck Off,Transport related expenditure,08/07/2021,33,Director of Children's Services and Education
Other Supplies,Discount Stores,Www.Theworks.Co.Uk,Supplies and Services related expenditure,08/07/2021,47.95,Director of Children's Services and Education
Medical,Lab/Med/Hospital Equipment,Wightman & Parrish,Premises related expenditure,08/07/2021,269.55,"Director of Housing, Neighbourhood and Building Services"
Business To Business Facility/,Hardware Equipment/Supplies,Croma Locksmiths & Sec,Supplies and Services related expenditure,08/07/2021,41.97,Director of Children's Services and Education
Business To Business Eqpt/Furn,Stationery/Office Supplies,Www.Banneruk.Com,Supplies and Services related expenditure,08/07/2021,0.29,Director of Children's Services and Education
Utility,Phone Serv/Equip Utility,Virgin Media Pymts,Supplies and Services related expenditure,08/07/2021,68,Director of Children's Services and Education
Facilities/Repair Supplies,Misc Home Furnishing,Tillys Beds Ltd,Supplies and Services related expenditure,08/07/2021,130,Director of Children's Services and Education
Other Supplies,Catalog Merchant,Nukey,Supplies and Services related expenditure,08/07/2021,8.4,Director of Adult Services
Business Services,Business Services - Default,Phs Group,Supplies and Services related expenditure,08/07/2021,702.67,"Director of Housing, Neighbourhood and Building Services"
Business To Business Eqpt/Furn,Stationery/Office Supplies,Pts,Supplies and Services related expenditure,08/07/2021,29.57,Director of Children's Services and Education
Government Service,Govt Serv - Default,Hampshire County Counc,Supplies and Services related expenditure,08/07/2021,35.37,Director of Children's Services and Education
Miscellaneous,Other Direct Marketers,Findel Education,Supplies and Services related expenditure,08/07/2021,99.99,Director of Children's Services and Education
Type of Retail Store,Grocery Stores/Supermarkets,Lidl Gb Portsmouth,Supplies and Services related expenditure,08/07/2021,6.52,Director of Children's Services and Education
Other Supplies,Wholesale Clubs,The Fruit Basket,Supplies and Services related expenditure,08/07/2021,46.08,"Director of Culture, Leisure & Regulatory Services"
Facilities/Repair Supplies,Lawn/Garden Supply/Nursery,Www.Tudorenvironmental,Supplies and Services related expenditure,08/07/2021,102.4,"Director of Culture, Leisure & Regulatory Services"
Other Supplies,Misc Speciality Retail,Amznmktplace,Supplies and Services related expenditure,08/07/2021,6.66,Director of Children's Services and Education
Type of Retail Store,Grocery Stores/Supermarkets,Tesco Gift Card,Supplies and Services related expenditure,08/07/2021,50,Director of Children's Services and Education
Government Service,Schools - Default,Iz *broadside Trai,Supplies and Services related expenditure,08/07/2021,82.5,"Director of Housing, Neighbourhood and Building Services"
Government Service,Schools - Default,Iz *broadside Trai,Supplies and Services related expenditure,08/07/2021,208.32,"Director of Housing, Neighbourhood and Building Services"
Government Service,Govt Serv - Default,Portsmouth City Co,Supplies and Services related expenditure,08/07/2021,38,Director of Children's Services and Education
Type of Retail Store,Grocery Stores/Supermarkets,Asda Stores Ltd,Supplies and Services related expenditure,08/07/2021,40,Director of Children's Services and Education
Type of Retail Store,Grocery Stores/Supermarkets,Asda Stores Ltd,Supplies and Services related expenditure,08/07/2021,50,Director of Children's Services and Education
Other Supplies,Discount Stores,Argos Ltd,Supplies and Services related expenditure,08/07/2021,138.95,Director of Children's Services and Education
Government Service,Schools - Default,Hertfordshire County C,Supplies and Services related expenditure,08/07/2021,30.68,Director of Children's Services and Education
Other Supplies,Misc Speciality Retail,Amznmktplace,Supplies and Services related expenditure,08/07/2021,11.6,Director of Children's Services and Education
Other Supplies,Misc Speciality Retail,Amznmktplace,Supplies and Services related expenditure,08/07/2021,18.32,Director of Children's Services and Education
Type of Retail Store,Religious Goods Stores,Paypal,Supplies and Services related expenditure,08/07/2021,116.25,Director of Children's Services and Education
Business Services,Business Services - Default,Blue Lamp Trust (Services,Transport related expenditure,08/07/2021,200,Director of Regeneration
Type of Retail Store,Artist/Craft Shops,Specialist Crafts Ltd,Supplies and Services related expenditure,08/07/2021,181.69,Director of Children's Services and Education
Type of Retail Store,Grocery Stores/Supermarkets,Marks&spencer Plc,Agency and Third Party Payments related expenditure,08/07/2021,34.29,Director of Children's Services and Education
Facilities/Repair Supplies,Lawn/Garden Supply/Nursery,Www.Tudorenvironmental,Supplies and Services related expenditure,08/07/2021,274.06,"Director of Culture, Leisure & Regulatory Services"
Type of Retail Store,Grocery Stores/Supermarkets,Tesco Store 3048,Supplies and Services related expenditure,08/07/2021,19.99,Director of Children's Services and Education
Miscellaneous,Charitable/Soc Service Orgs,Rm Subscription,Supplies and Services related expenditure,08/07/2021,35,"Director of Housing, Neighbourhood and Building Services"
Miscellaneous,Other Direct Marketers,Amazon.Co.Uk,Supplies and Services related expenditure,08/07/2021,15.25,Director of Children's Services and Education
Type of Retail Store,Grocery Stores/Supermarkets,Tesco Store 3048,Supplies and Services related expenditure,08/07/2021,4.34,"Director of Housing, Neighbourhood and Building Services"
Automobile Services & Supplies,Service Stations,Shell Fratton 178,Supplies and Services related expenditure,08/07/2021,39.57,"Director of Housing, Neighbourhood and Building Services"
Business To Business Facility/,Industrial Supplies - Def,Arco Limited (Ahpp),Supplies and Services related expenditure,08/07/2021,22.7,"Director of Housing, Neighbourhood and Building Services"
Business To Business Facility/,Industrial Supplies - Def,Arco Limited (Ahpp),Supplies and Services related expenditure,08/07/2021,48.88,"Director of Housing, Neighbourhood and Building Services"
Facilities/Repair Supplies,Glass/Paint/Wallpaper Store,Johnstones Dec Centre,Premises related expenditure,08/07/2021,49.85,"Director of Culture, Leisure & Regulatory Services"
Facilities/Repair Supplies,Lawn/Garden Supply/Nursery,M & S Enterprises,Supplies and Services related expenditure,08/07/2021,31.67,"Director of Housing, Neighbourhood and Building Services"
Facilities/Repair Supplies,Lawn/Garden Supply/Nursery,Carters Of Swanwic,Supplies and Services related expenditure,08/07/2021,111.68,"Director of Housing, Neighbourhood and Building Services"
Facilities/Repair Supplies,Lawn/Garden Supply/Nursery,Carters Of Swanwic,Supplies and Services related expenditure,08/07/2021,300,"Director of Housing, Neighbourhood and Building Services"
Automobile Services & Supplies,Service Stations,Tesco Pfs 4274,Premises related expenditure,08/07/2021,8.33,Director of Children's Services and Education
Facilities/Repair Supplies,Hardware Stores,Toolstation Uk,Premises related expenditure,08/07/2021,118.98,Director of Children's Services and Education
Miscellaneous,Financial Inst/Merchandise,Siemens Financial Svs,Premises related expenditure,08/07/2021,279.45,Director of Adult Services
Facilities/Repair Supplies,Lumber/Build. Supply Stores,Screwfix Dir Ltd,Premises related expenditure,08/07/2021,16.65,"Director of Housing, Neighbourhood and Building Services"
Facilities/Repair Supplies,Lumber/Build. Supply Stores,Screwfix Direct,Premises related expenditure,08/07/2021,88.98,"Director of Housing, Neighbourhood and Building Services"
Facilities/Repair Supplies,Glass/Paint/Wallpaper Store,Www.Ironmongerydirect.,Premises related expenditure,08/07/2021,152,"Director of Housing, Neighbourhood and Building Services"
Transportation Conveyor,Local Commuter Transport,Www.Hovertravel.Com,Supplies and Services related expenditure,08/07/2021,20.92,Director of Children's Services and Education
Business Expenses/Services,Postage Stamps,Royal Mail Group Ltd,Supplies and Services related expenditure,08/07/2021,3.68,Solent LEP
Other Supplies,Misc Speciality Retail,Amznmktplace,Supplies and Services related expenditure,08/07/2021,3.24,Solent LEP
Type of Retail Store,Grocery Stores/Supermarkets,Tesco Stores 2496,Supplies and Services related expenditure,08/07/2021,3.67,Solent LEP
Medical,Lab/Med/Hospital Equipment,Hospital Direct,Supplies and Services related expenditure,08/07/2021,20.76,Director of Adult Services
Medical,Lab/Med/Hospital Equipment,Hospital Direct,Supplies and Services related expenditure,08/07/2021,3.95,Director of Adult Services
Type of Retail Store,Music Stores/Pianos,Music Store Professional,Supplies and Services related expenditure,08/07/2021,23.33,"Director of Housing, Neighbourhood and Building Services"
Business To Business Eqpt/Furn,Stationery/Office Supplies,Www.Banneruk.Com,Supplies and Services related expenditure,08/07/2021,38.58,Director of Corporate Services
Eating And Drinking Places,Eating Places/Restaurants,Greggs Plc,Agency and Third Party Payments related expenditure,08/07/2021,4.3,Director of Children's Services and Education
Automobile Services & Supplies,Service Stations,Tesco Pfs 2339,Supplies and Services related expenditure,08/07/2021,1.83,Director of Children's Services and Education
Automobile Services & Supplies,Service Stations,Tesco Pfs 2339,Supplies and Services related expenditure,08/07/2021,4,Director of Children's Services and Education
Business To Business Facility/,Electrical Parts/Equipment,Cex Portsmouth,Agency and Third Party Payments related expenditure,08/07/2021,100,Director of Children's Services and Education
Utility,Phone Serv/Equip Utility,O2,Supplies and Services related expenditure,08/07/2021,25.13,Director of Children's Services and Education
Type of Retail Store,Grocery Stores/Supermarkets,Asda Groceries Online,Supplies and Services related expenditure,08/07/2021,24.59,Director of Children's Services and Education
Type of Retail Store,Grocery Stores/Supermarkets,Asda Groceries Online,Supplies and Services related expenditure,08/07/2021,15.74,Director of Children's Services and Education
Facilities/Repair Supplies,Home Supply Warehouse Stores,B & Q 1238,Supplies and Services related expenditure,08/07/2021,20.02,"Director of Culture, Leisure & Regulatory Services"
Other Supplies,Misc Speciality Retail,Www.Moleonline.Com,Supplies and Services related expenditure,08/07/2021,53,"Director of Culture, Leisure & Regulatory Services"
Auto/Vehicle Expenses,Auto Service Shops/Non Dealer,Staple Garage,Transport related expenditure,08/07/2021,54,"Director of Housing, Neighbourhood and Building Services"
Auto/Vehicle Expenses,Auto Service Shops/Non Dealer,Staple Garage,Transport related expenditure,08/07/2021,20,"Director of Housing, Neighbourhood and Building Services"
Facilities/Repair Supplies,Home Supply Warehouse Stores,B & Q 1260,Premises related expenditure,08/07/2021,34.1,"Director of Culture, Leisure & Regulatory Services"
Type of Retail Store,Grocery Stores/Supermarkets,Tesco Stores 6002,Supplies and Services related expenditure,08/07/2021,16.2,Director of Children's Services and Education
Type of Retail Store,Grocery Stores/Supermarkets,Tesco Stores 6002,Supplies and Services related expenditure,08/07/2021,128.98,Director of Children's Services and Education
Transportation Conveyor,"Parking Lots, Meters, Garages",Ringgo Parking,Transport related expenditure,08/07/2021,1.42,Solent LEP
Other Supplies,Department Stores,Southern Co-Op 0328,Supplies and Services related expenditure,08/07/2021,1,Director of Children's Services and Education
Type of Retail Store,Grocery Stores/Supermarkets,Tesco Store 3048,Supplies and Services related expenditure,08/07/2021,30,Director of Children's Services and Education
Type of Retail Store,Grocery Stores/Supermarkets,Tesco Stores 4611,Supplies and Services related expenditure,08/07/2021,120,Director of Children's Services and Education
Eating And Drinking Places,Eating Places/Restaurants,German Doner Kebab,Supplies and Services related expenditure,08/07/2021,6.24,Director of Children's Services and Education
Transportation Conveyor,Passenger Railways,Swrailwayselfserve,Supplies and Services related expenditure,08/07/2021,22.33,Director of Children's Services and Education
Business To Business Eqpt/Furn,Book Stores,Stationery Office Book,Premises related expenditure,08/07/2021,12.5,"Director of Housing, Neighbourhood and Building Services"
Business To Business Eqpt/Furn,Book Stores,Stationery Office Book,Premises related expenditure,08/07/2021,12.5,"Director of Housing, Neighbourhood and Building Services"
Type of Retail Store,Grocery Stores/Supermarkets,Wm Morrisons Store,Supplies and Services related expenditure,08/07/2021,16.9,Director of Children's Services and Education
Other Supplies,Department Stores,Southern Co-Op 0328,Supplies and Services related expenditure,08/07/2021,5.8,Director of Children's Services and Education
Other Supplies,Department Stores,Southern Co-Op 0024,Supplies and Services related expenditure,08/07/2021,7.65,Director of Children's Services and Education
Type of Retail Store,Grocery Stores/Supermarkets,Sainsburys S/mkts,Supplies and Services related expenditure,08/07/2021,14.17,Director of Children's Services and Education
Business To Business Eqpt/Furn,Stationery/Office Supplies,Www.Banneruk.Com,Supplies and Services related expenditure,08/07/2021,54.12,Director of Children's Services and Education
Government Service,Tax Payments,Dvla Vehicle Tax,Transport related expenditure,08/07/2021,277.5,"Director of Culture, Leisure & Regulatory Services"
Government Service,Tax Payments,Dvla Vehicle Tax,Transport related expenditure,08/07/2021,277.5,"Director of Housing, Neighbourhood and Building Services"
Government Service,Tax Payments,Dvla Vehicle Tax,Transport related expenditure,08/07/2021,277.5,"Director of Housing, Neighbourhood and Building Services"
Business To Business Eqpt/Furn,Stationery/Office Supplies,Yorkshire Purchasing O,Supplies and Services related expenditure,08/07/2021,20.39,Director of Children's Services and Education
Transportation Conveyor,Local Commuter Transport,Gosport Ferry Ltd,Transport related expenditure,08/07/2021,3.9,Director of Children's Services and Education
Eating And Drinking Places,Eating Places/Restaurants,Greggs Plc,Supplies and Services related expenditure,08/07/2021,5.3,Director of Children's Services and Education
Medical,Lab/Med/Hospital Equipment,Wightman & Parrish,Supplies and Services related expenditure,08/07/2021,52.38,"Director of Housing, Neighbourhood and Building Services"
Medical,Lab/Med/Hospital Equipment,Wightman & Parrish,Premises related expenditure,08/07/2021,63.43,"Director of Housing, Neighbourhood and Building Services"
Type of Retail Store,Misc Food Stores - Default,Bransbury Park Butchers,Supplies and Services related expenditure,08/07/2021,94.32,Director of Adult Services
Type of Retail Store,Freezer/Meat Lockers,Dennis Edwards Food Serv,Supplies and Services related expenditure,08/07/2021,183.17,Director of Adult Services
Type of Retail Store,Freezer/Meat Lockers,Dennis Edwards Food Serv,Supplies and Services related expenditure,08/07/2021,0.66,Director of Adult Services
Other Supplies,Wholesale Clubs,The Fruit Basket,Supplies and Services related expenditure,08/07/2021,212.89,Director of Adult Services
Business To Business Facility/,Industrial Supplies - Def,Arco Limited (Ahpp),Supplies and Services related expenditure,04/07/2021,7.01,Director of Regeneration
Business To Business Facility/,Industrial Supplies - Def,Arco Limited (Ahpp),Supplies and Services related expenditure,05/07/2021,38.73,"Director of Housing, Neighbourhood and Building Services"
Hotels And Motels,Premier Travel Inns,Premier Inn 44536680,Agency and Third Party Payments related expenditure,08/07/2021,140.46,"Director of Housing, Neighbourhood and Building Services"
Automobile Services & Supplies,Service Stations,Mfg Cosham Service Statio,Supplies and Services related expenditure,08/07/2021,10,Director of Children's Services and Education
Business To Business Facility/,Electrical Parts/Equipment,Www.Buyspares.Co.Uk,Premises related expenditure,08/07/2021,29.35,Director of Children's Services and Education
Business To Business Facility/,Industrial Supplies - Def,Arco Limited (Ahpp),Supplies and Services related expenditure,08/07/2021,108.68,"Director of Housing, Neighbourhood and Building Services"
Automobile Services & Supplies,Service Stations,Eastern Road Service Stat,Transport related expenditure,08/07/2021,8.35,Director of Adult Services
Business To Business Facility/,Electrical Parts/Equipment,Rs Components,Supplies and Services related expenditure,08/07/2021,308.2,Director of Regeneration
Miscellaneous,Fines,Hmcourt-Services.G,Supplies and Services related expenditure,09/07/2021,100,Director of Finance & Resources
Medical,Lab/Med/Hospital Equipment,Wightman & Parrish,Supplies and Services related expenditure,09/07/2021,675.8,"Director of Housing, Neighbourhood and Building Services"
Hotels And Motels,Travelodge,Travelodge Gb0000,Agency and Third Party Payments related expenditure,09/07/2021,588,"Director of Housing, Neighbourhood and Building Services"
Hotels And Motels,Travelodge,Travelodge Gb0000,Agency and Third Party Payments related expenditure,09/07/2021,2544.83,"Director of Housing, Neighbourhood and Building Services"
Hotels And Motels,Travelodge,Travelodge Gb0000,Agency and Third Party Payments related expenditure,09/07/2021,588,"Director of Housing, Neighbourhood and Building Services"
Hotels And Motels,Travelodge,Travelodge Gb0000,Agency and Third Party Payments related expenditure,09/07/2021,2672.4,"Director of Housing, Neighbourhood and Building Services"
Government Service,Govt Serv - Default,Pcc Internet Payment,Supplies and Services related expenditure,09/07/2021,33,Director of Children's Services and Education
Facilities/Repair Supplies,Hardware Stores,Home Bargains,Supplies and Services related expenditure,09/07/2021,5.82,"Director of Housing, Neighbourhood and Building Services"
Type of Retail Store,Grocery Stores/Supermarkets,Asda Stores,Supplies and Services related expenditure,09/07/2021,4.24,Director of Children's Services and Education
Government Service,Govt Serv - Default,Portsmouth City Co,Transport related expenditure,09/07/2021,63.33,Director of Children's Services and Education
Auto/Vehicle Expenses,Tire Retread/Repair Shops,Setyres,Transport related expenditure,09/07/2021,10,"Director of Culture, Leisure & Regulatory Services"
Other Supplies,Department Stores,Southern Co-Op 0007,Supplies and Services related expenditure,09/07/2021,2.88,Director of Children's Services and Education
Other Supplies,Discount Stores,Poundwise Milton,Premises related expenditure,09/07/2021,15.54,Director of Children's Services and Education
Government Service,Vocational/Trade Schools,Www.Rta-Training.Co.Uk,Employees related expenditure,09/07/2021,249.99,Director of Adult Services
Facilities/Repair Supplies,Automotive Parts Stores,Westleigh Motor Factor,Supplies and Services related expenditure,09/07/2021,4.17,"Director of Housing, Neighbourhood and Building Services"
Facilities/Repair Supplies,Automotive Parts Stores,Westleigh Motor Factor,Supplies and Services related expenditure,09/07/2021,16.67,"Director of Housing, Neighbourhood and Building Services"
Facilities/Repair Supplies,Lawn/Garden Supply/Nursery,Merry Mower Services Lt,Supplies and Services related expenditure,09/07/2021,190,"Director of Housing, Neighbourhood and Building Services"
Type of Retail Store,Grocery Stores/Supermarkets,Tesco Stores 4611,Supplies and Services related expenditure,09/07/2021,50,Director of Children's Services and Education
Other Supplies,Misc Speciality Retail,Amznmktplace,Supplies and Services related expenditure,09/07/2021,28.32,Director of Adult Services
Type of Retail Store,Grocery Stores/Supermarkets,Tesco Store 3048,Supplies and Services related expenditure,09/07/2021,1,"Director of Housing, Neighbourhood and Building Services"
Type of Retail Store,Grocery Stores/Supermarkets,Tesco Store 3048,Supplies and Services related expenditure,09/07/2021,5.25,"Director of Housing, Neighbourhood and Building Services"
Automobile Services & Supplies,Service Stations,Tesco Pfs 2339,Supplies and Services related expenditure,09/07/2021,5.82,"Director of Housing, Neighbourhood and Building Services"
Other Supplies,Department Stores,The Range,Supplies and Services related expenditure,09/07/2021,51.96,"Director of Housing, Neighbourhood and Building Services"
Other Supplies,Misc Speciality Retail,Amznmktplace,Supplies and Services related expenditure,09/07/2021,5.82,Director of Children's Services and Education
Business Services,Photo Studios,Canva* 03111-9939875,Supplies and Services related expenditure,09/07/2021,10.99,"Director of Culture, Leisure & Regulatory Services"
Other Supplies,Misc Speciality Retail,Amznmktplace,Supplies and Services related expenditure,09/07/2021,9.16,Director of Adult Services
Other Supplies,Misc Speciality Retail,Amznmktplace,Supplies and Services related expenditure,09/07/2021,24.98,Director of Children's Services and Education
Other Supplies,Misc Speciality Retail,Amznmktplace,Supplies and Services related expenditure,09/07/2021,15.77,Director of Regeneration
Other Supplies,Misc Speciality Retail,Amznmktplace,Supplies and Services related expenditure,09/07/2021,17.47,Director of Regeneration
Type of Retail Store,Grocery Stores/Supermarkets,Asda Stores,Supplies and Services related expenditure,09/07/2021,1.67,"Director of Housing, Neighbourhood and Building Services"
Medical,Lab/Med/Hospital Equipment,Wightman & Parrish,Premises related expenditure,09/07/2021,275.06,"Director of Housing, Neighbourhood and Building Services"
Other Supplies,Department Stores,Southern Co-Op 0019,Supplies and Services related expenditure,09/07/2021,14.33,Director of Children's Services and Education
Type of Retail Store,Grocery Stores/Supermarkets,Wm Morrisons Store,Supplies and Services related expenditure,09/07/2021,25,"Director of Housing, Neighbourhood and Building Services"
Government Service,Schools - Default,M L (UK) Limited,Premises related expenditure,09/07/2021,406.26,Director of Portsmouth International Port
Type of Retail Store,Grocery Stores/Supermarkets,Tesco Stores 4579,Supplies and Services related expenditure,09/07/2021,2.74,Director of Adult Services
Type of Retail Store,Grocery Stores/Supermarkets,Tesco Stores 4579,Supplies and Services related expenditure,09/07/2021,19.12,Director of Adult Services
Other Supplies,Misc Speciality Retail,Amznbusiness,Supplies and Services related expenditure,09/07/2021,17.5,Director of Adult Services
Business Services,Business Services - Default,Phs Group,Supplies and Services related expenditure,09/07/2021,55.11,"Director of Housing, Neighbourhood and Building Services"
Business Services,Business Services - Default,Phs Group,Supplies and Services related expenditure,09/07/2021,110.22,"Director of Housing, Neighbourhood and Building Services"
Business Services,Business Services - Default,Phs Group,Supplies and Services related expenditure,09/07/2021,436.29,"Director of Housing, Neighbourhood and Building Services"
Business Services,Business Services - Default,Phs Group,Supplies and Services related expenditure,09/07/2021,651.97,"Director of Housing, Neighbourhood and Building Services"
Business To Business Eqpt/Furn,Stationery/Office Supplies,Www.Banneruk.Com,Supplies and Services related expenditure,09/07/2021,5.52,Director of Adult Services
Business To Business Facility/,Industrial Supplies - Def,Www.Arco.Co.Uk,Supplies and Services related expenditure,09/07/2021,106.35,Director of Adult Services
Government Service,Business/Secretarial School,Pp*medicationtraining,Employees related expenditure,09/07/2021,600,Director of Adult Services
Government Service,Govt Serv - Default,Www.Portsmouthcc.Gov.U,Transport related expenditure,09/07/2021,1.75,Director of Children's Services and Education
Government Service,Govt Serv - Default,Www.Portsmouthcc.Gov.U,Transport related expenditure,09/07/2021,5.42,Director of Children's Services and Education
Equipment And Furniture,Furniture/Equip Stores,Www.Venesta.Co.Uk,Premises related expenditure,09/07/2021,128.33,Director of Children's Services and Education
Other Supplies,Misc Speciality Retail,Amznmktplace,Supplies and Services related expenditure,09/07/2021,33.96,Director of Children's Services and Education
Type of Retail Store,Grocery Stores/Supermarkets,Sainsburys S/mkt,Supplies and Services related expenditure,09/07/2021,20.5,Director of Children's Services and Education
Medical,Lab/Med/Hospital Equipment,Wightman & Parrish,Supplies and Services related expenditure,09/07/2021,278.98,Director of Regeneration
Business To Business Facility/,Industrial Supplies - Def,Arco Limited (Ahpp),Supplies and Services related expenditure,09/07/2021,21.17,"Director of Culture, Leisure & Regulatory Services"
Business To Business Facility/,Industrial Supplies - Def,Arco Limited (Ahpp),Supplies and Services related expenditure,09/07/2021,128.64,"Director of Culture, Leisure & Regulatory Services"
Business To Business Eqpt/Furn,Stationery/Office Supplies,Www.Banneruk.Com,Supplies and Services related expenditure,09/07/2021,5,"Director of Housing, Neighbourhood and Building Services"
Business To Business Eqpt/Furn,Stationery/Office Supplies,Www.Banneruk.Com,Supplies and Services related expenditure,09/07/2021,108.14,"Director of Housing, Neighbourhood and Building Services"
Type of Retail Store,Grocery Stores/Supermarkets,Tesco Store 3186,Supplies and Services related expenditure,09/07/2021,2.05,Director of Adult Services
Business To Business Eqpt/Furn,Stationery/Office Supplies,Www.Banneruk.Com,Supplies and Services related expenditure,09/07/2021,130.4,"Director of Housing, Neighbourhood and Building Services"
Facilities/Repair Supplies,Bicycle Shops/Sales/Service,Portsmouth Cycle Excha,Supplies and Services related expenditure,09/07/2021,82.5,Director of Regeneration
Equipment And Furniture,Furniture/Equip Stores,Ikea Ltd Shop Online,Supplies and Services related expenditure,09/07/2021,483.33,Director of Children's Services and Education
Other Supplies,Misc Gen Merchandise - Def,B&m Retail Ltd,Premises related expenditure,09/07/2021,11.64,"Director of Culture, Leisure & Regulatory Services"
Medical,Lab/Med/Hospital Equipment,Wightman & Parrish,Premises related expenditure,09/07/2021,9.91,"Director of Housing, Neighbourhood and Building Services"
Other Supplies,Misc Gen Merchandise - Def,Wilko Retail Limited,Premises related expenditure,09/07/2021,6.67,"Director of Housing, Neighbourhood and Building Services"
Business To Business Facility/,Industrial Supplies - Def,Arco Limited (Sap),Supplies and Services related expenditure,09/07/2021,30.33,"Director of Housing, Neighbourhood and Building Services"
Type of Retail Store,Grocery Stores/Supermarkets,Asda Stores Ltd,Supplies and Services related expenditure,09/07/2021,40,Director of Children's Services and Education
Miscellaneous,Member Organizations - Def,Rics Com Gbp Cybs,Employees related expenditure,09/07/2021,220,"Director of Housing, Neighbourhood and Building Services"
Other Supplies,Misc Speciality Retail,Amznmktplace,Supplies and Services related expenditure,09/07/2021,9.99,Director of Adult Services
Other Supplies,Misc Speciality Retail,Amznmktplace,Supplies and Services related expenditure,09/07/2021,2.49,Director of Adult Services
Type of Retail Store,Grocery Stores/Supermarkets,Aldi Stores Ltd,Supplies and Services related expenditure,09/07/2021,13.31,Director of Children's Services and Education
Eating And Drinking Places,Fast Food Restaurants,Costa Coffee 43040140,Supplies and Services related expenditure,09/07/2021,2.48,Director of Children's Services and Education
Facilities/Repair Supplies,Home Supply Warehouse Stores,B & Q 1260,Supplies and Services related expenditure,09/07/2021,45.51,Director of Adult Services
Caterers Food,Caterers,Booker Limited Portsmouth,Premises related expenditure,09/07/2021,19.98,"Director of Housing, Neighbourhood and Building Services"
Government Service,Schools - Default,Intelligent E Learning Lt,Employees related expenditure,09/07/2021,19,Director of Children's Services and Education
Transportation Conveyor,Passenger Railways,Swrailway Tck Off,Transport related expenditure,09/07/2021,83.75,Director of Children's Services and Education
Personal Service Provider,Professional Services - Def,Iz *advantage Self,Supplies and Services related expenditure,09/07/2021,475,Director of Children's Services and Education
Business To Business Eqpt/Furn,Book Stores,Stationery Office Book,Premises related expenditure,09/07/2021,12.5,"Director of Housing, Neighbourhood and Building Services"
Business To Business Eqpt/Furn,Book Stores,Stationery Office Book,Premises related expenditure,09/07/2021,12.5,"Director of Housing, Neighbourhood and Building Services"
Business To Business Other Sup,Non-Durable Goods - Default,Www.Edensprings.Co.Uk,Supplies and Services related expenditure,09/07/2021,37.5,"Director of Housing, Neighbourhood and Building Services"
Equipment And Furniture,Furniture/Equip Stores,Ikea Ltd Shop Online,Supplies and Services related expenditure,09/07/2021,483.33,Director of Children's Services and Education
Business To Business Eqpt/Furn,Stationery/Office Supplies,Www.Banneruk.Com,Supplies and Services related expenditure,09/07/2021,51.69,Director of Corporate Services
Facilities/Repair Supplies,Hardware Stores,Cable Ties Direct,Supplies and Services related expenditure,09/07/2021,542.35,Director of Regeneration
Business To Business Eqpt/Furn,Stationery/Office Supplies,Www.Banneruk.Com,Supplies and Services related expenditure,09/07/2021,15.46,Director of Children's Services and Education
Business To Business Eqpt/Furn,Stationery/Office Supplies,Www.Banneruk.Com,Supplies and Services related expenditure,09/07/2021,64.73,Director of Children's Services and Education
Government Service,Tax Payments,Dvla Vehicle Tax,Transport related expenditure,09/07/2021,277.5,"Director of Housing, Neighbourhood and Building Services"
Eating And Drinking Places,Eating Places/Restaurants,The Best Kebab,Agency and Third Party Payments related expenditure,09/07/2021,5.8,Director of Children's Services and Education
Other Supplies,Misc Gen Merchandise - Def,B&m Retail Ltd,Supplies and Services related expenditure,09/07/2021,9.17,Director of Children's Services and Education
Eating And Drinking Places,Fast Food Restaurants,McDonalds,Agency and Third Party Payments related expenditure,09/07/2021,8.86,Director of Children's Services and Education
Eating And Drinking Places,Fast Food Restaurants,McDonalds,Agency and Third Party Payments related expenditure,09/07/2021,3.5,Director of Children's Services and Education
Type of Retail Store,Grocery Stores/Supermarkets,Sainsburys S/mkts,Supplies and Services related expenditure,09/07/2021,4.75,Director of Children's Services and Education
Type of Retail Store,Grocery Stores/Supermarkets,Sainsburys S/mkts,Supplies and Services related expenditure,09/07/2021,16.25,Director of Children's Services and Education
Other Supplies,Misc Gen Merchandise - Def,Popinabox.Co.Uk,Agency and Third Party Payments related expenditure,09/07/2021,25.97,Director of Children's Services and Education
Eating And Drinking Places,Fast Food Restaurants,De Garden Limited,Agency and Third Party Payments related expenditure,09/07/2021,42.58,Director of Children's Services and Education
Business To Business Eqpt/Furn,Stationery/Office Supplies,Pts,Supplies and Services related expenditure,09/07/2021,64.8,Director of Children's Services and Education
Facilities/Repair Supplies,Hardware Stores,Www.Schoolmeritstickers.,Supplies and Services related expenditure,09/07/2021,83.3,Director of Children's Services and Education
Other Supplies,Discount Stores,Argos Ltd,Premises related expenditure,09/07/2021,216.65,"Director of Housing, Neighbourhood and Building Services"
Type of Retail Store,Electronics Sales,Currys Online,Supplies and Services related expenditure,09/07/2021,116.66,Director of Adult Services
Type of Retail Store,Grocery Stores/Supermarkets,Www.Iceland.Co.Uk,Supplies and Services related expenditure,10/07/2021,92.79,Director of Adult Services
Other Supplies,Discount Stores,Poundland,Agency and Third Party Payments related expenditure,10/07/2021,3,Director of Children's Services and Education
Eating And Drinking Places,Fast Food Restaurants,Kaspas Fareham,Agency and Third Party Payments related expenditure,10/07/2021,5.95,Director of Children's Services and Education
Clothing Services,Family Clothing Stores,Next Retail Ltd,Supplies and Services related expenditure,10/07/2021,18.63,Director of Children's Services and Education
Clothing Services,Mens/Womens Clothing Stores,H & M,Supplies and Services related expenditure,10/07/2021,23.4,Director of Children's Services and Education
Type of Retail Store,Grocery Stores/Supermarkets,Tesco Stores 4579,Supplies and Services related expenditure,10/07/2021,14.29,Director of Children's Services and Education
Type of Retail Store,Grocery Stores/Supermarkets,Tesco Stores 4579,Supplies and Services related expenditure,10/07/2021,72.6,Director of Children's Services and Education
Business Services,Advertising Services,Facebk Rd4vr4p8z2,Supplies and Services related expenditure,10/07/2021,699.13,Director of Corporate Services
Eating And Drinking Places,Fast Food Restaurants,McDonalds,Agency and Third Party Payments related expenditure,10/07/2021,1.65,Director of Children's Services and Education
Type of Retail Store,Grocery Stores/Supermarkets,Tesco Stores 6655,Supplies and Services related expenditure,10/07/2021,12.75,Director of Adult Services
Type of Retail Store,Grocery Stores/Supermarkets,Www.Iceland.Co.Uk,Supplies and Services related expenditure,10/07/2021,38.26,Director of Adult Services
Miscellaneous,Buying/Shopping Services,Costco Wholesale #124,Supplies and Services related expenditure,10/07/2021,4.89,Director of Children's Services and Education
Type of Retail Store,Drug Stores & Pharmacies,Superdrug Stores Plc,Supplies and Services related expenditure,10/07/2021,9.14,Director of Adult Services
Type of Retail Store,Grocery Stores/Supermarkets,Asda Superstore,Supplies and Services related expenditure,10/07/2021,-22,Director of Children's Services and Education
Miscellaneous,Continuity/Subscription Mercht,Telegraph Subscription,Supplies and Services related expenditure,10/07/2021,8.67,Director of Portsmouth International Port
Type of Retail Store,Grocery Stores/Supermarkets,Asda Groceries Online,Supplies and Services related expenditure,10/07/2021,26.13,Director of Children's Services and Education
Type of Retail Store,Grocery Stores/Supermarkets,Asda Groceries Online,Supplies and Services related expenditure,10/07/2021,62.61,Director of Children's Services and Education
Type of Retail Store,Grocery Stores/Supermarkets,One Stop Stores 2904,Supplies and Services related expenditure,10/07/2021,2.75,Director of Children's Services and Education
Other Supplies,Misc Gen Merchandise - Def,B&m Retail Ltd,Supplies and Services related expenditure,10/07/2021,7.91,Director of Children's Services and Education
Type of Retail Store,Drug Stores & Pharmacies,Boots 2148,Supplies and Services related expenditure,10/07/2021,10.83,Director of Children's Services and Education
Type of Retail Store,Grocery Stores/Supermarkets,Asda Stores 7134,Supplies and Services related expenditure,10/07/2021,6,Director of Children's Services and Education
Other Supplies,Misc Speciality Retail,Amznmktplace Amazon.Co.Uk,Supplies and Services related expenditure,11/07/2021,6.66,Director of Children's Services and Education
Other Supplies,Misc Speciality Retail,Amznmktplace Amazon.Co.Uk,Supplies and Services related expenditure,11/07/2021,16.66,Director of Children's Services and Education
Miscellaneous,Other Direct Marketers,Amazon.Co.Uk,Supplies and Services related expenditure,11/07/2021,43.54,Director of Children's Services and Education
Miscellaneous,Continuity/Subscription Mercht,Amazon Prime,Supplies and Services related expenditure,11/07/2021,6.66,Director of Children's Services and Education
Type of Retail Store,Grocery Stores/Supermarkets,Asda Groceries Online,Supplies and Services related expenditure,11/07/2021,-4.16,Director of Children's Services and Education
Type of Retail Store,Grocery Stores/Supermarkets,Asda Groceries Online,Supplies and Services related expenditure,11/07/2021,18.33,Director of Children's Services and Education
Type of Retail Store,Grocery Stores/Supermarkets,Asda Groceries Online,Supplies and Services related expenditure,11/07/2021,71.06,Director of Children's Services and Education
Other Supplies,Misc Speciality Retail,Amznmktplace,Supplies and Services related expenditure,11/07/2021,24.16,Director of Children's Services and Education
Type of Retail Store,Grocery Stores/Supermarkets,Asda Groceries Online,Supplies and Services related expenditure,11/07/2021,118.7,Director of Adult Services
Type of Retail Store,Grocery Stores/Supermarkets,Tesco Stores 4579,Supplies and Services related expenditure,11/07/2021,17.64,Director of Adult Services
Type of Retail Store,Grocery Stores/Supermarkets,Sainsburys S/mkt,Supplies and Services related expenditure,11/07/2021,20.54,Director of Children's Services and Education
Type of Retail Store,Grocery Stores/Supermarkets,Sainsburys S/mkt,Supplies and Services related expenditure,11/07/2021,72.75,Director of Children's Services and Education
Miscellaneous,Other Direct Marketers,Amazon.Co.Uk,Supplies and Services related expenditure,11/07/2021,6.48,Director of Children's Services and Education
Facilities/Repair Supplies,Home Supply Warehouse Stores,B & Q 1260,Supplies and Services related expenditure,11/07/2021,83.33,"Director of Culture, Leisure & Regulatory Services"
Transportation Conveyor,"Parking Lots, Meters, Garages",3c_*portsmouth City Coun,Transport related expenditure,11/07/2021,1.8,Director of Children's Services and Education
Type of Retail Store,Grocery Stores/Supermarkets,Tesco Store 3055,Supplies and Services related expenditure,11/07/2021,53.89,Director of Children's Services and Education
Transportation Conveyor,"Parking Lots, Meters, Garages",Ncp Portsmouth Market Wa,Transport related expenditure,11/07/2021,2.25,Director of Children's Services and Education
Type of Retail Store,Grocery Stores/Supermarkets,Co-Op Group Food,Supplies and Services related expenditure,11/07/2021,2.54,Director of Children's Services and Education
Transportation Conveyor,"Parking Lots, Meters, Garages",3c_*portsmouth City Coun,Transport related expenditure,11/07/2021,3.42,Director of Children's Services and Education
Business To Business Eqpt/Furn,Stationery/Office Supplies,Cards Direct Portsmout,Supplies and Services related expenditure,11/07/2021,5.46,Director of Children's Services and Education
Clothing Services,Womens Ready To Wear Stores,New Look,Supplies and Services related expenditure,11/07/2021,13.33,Director of Children's Services and Education
Amusement/Entertainment,Amusement Parks/Circus,Clarence Pier,Agency and Third Party Payments related expenditure,11/07/2021,20,Director of Children's Services and Education
Other Supplies,Misc Speciality Retail,Amznmktplace,Supplies and Services related expenditure,11/07/2021,321.23,Director of Regeneration
Business To Business Facility/,Industrial Supplies - Def,Arco Limited (Ahpp),Supplies and Services related expenditure,05/07/2021,13.62,"Director of Housing, Neighbourhood and Building Services"
Automobile Services & Supplies,Service Stations,Eastern Road Service Stat,Supplies and Services related expenditure,11/07/2021,6.97,Director of Children's Services and Education
Business Services,Business Services - Default,Ghs Recycling Ltd,Agency and Third Party Payments related expenditure,12/07/2021,53.9,"Director of Housing, Neighbourhood and Building Services"
Transportation Conveyor,Local Commuter Transport,Hovertravel Ltd,Agency and Third Party Payments related expenditure,12/07/2021,260,Director of Children's Services and Education
Facilities/Repair Supplies,Lawn/Garden Supply/Nursery,M & S Enterprises,Supplies and Services related expenditure,12/07/2021,2.5,"Director of Housing, Neighbourhood and Building Services"
Business To Business Eqpt/Furn,Computer Software Stores,Ivo Group Ltd,Supplies and Services related expenditure,12/07/2021,528.82,"Director of Housing, Neighbourhood and Building Services"
Facilities/Repair Supplies,Lawn/Garden Supply/Nursery,M & S Enterprises,Supplies and Services related expenditure,12/07/2021,597.4,"Director of Housing, Neighbourhood and Building Services"
Business Services,Business Services - Default,Fast Key Services Limi,Supplies and Services related expenditure,12/07/2021,6.11,"Director of Housing, Neighbourhood and Building Services"
Transportation Conveyor,Passenger Railways,Trainline,Transport related expenditure,12/07/2021,12.8,Director of Children's Services and Education
Type of Retail Store,Grocery Stores/Supermarkets,Tesco Stores 4611,Supplies and Services related expenditure,12/07/2021,25,Director of Children's Services and Education
Type of Retail Store,Grocery Stores/Supermarkets,Asda Stores,Supplies and Services related expenditure,12/07/2021,4.65,Director of Children's Services and Education
Personal Service Provider,Professional Services - Def,Paypal,Supplies and Services related expenditure,12/07/2021,63.96,Director of Children's Services and Education
Other Supplies,Misc Speciality Retail,Amznmktplace,Premises related expenditure,12/07/2021,8.61,Director of Children's Services and Education
Other Supplies,Department Stores,Southern Co-Op 0009,Premises related expenditure,12/07/2021,4.17,Director of Children's Services and Education
Government Service,Govt Serv - Default,Portsmouth City Co,Transport related expenditure,12/07/2021,63.33,Director of Adult Services
Type of Retail Store,Grocery Stores/Supermarkets,Tesco Stores 4579,Supplies and Services related expenditure,12/07/2021,14.58,Director of Children's Services and Education
Type of Retail Store,Grocery Stores/Supermarkets,Tesco Stores 4579,Supplies and Services related expenditure,12/07/2021,7.08,Director of Children's Services and Education
Type of Retail Store,Grocery Stores/Supermarkets,Tesco Stores 4579,Premises related expenditure,12/07/2021,4.83,Director of Children's Services and Education
Type of Retail Store,Grocery Stores/Supermarkets,Tesco Stores 4579,Supplies and Services related expenditure,12/07/2021,50.5,Director of Children's Services and Education
Government Service,Govt Serv - Default,Hampshire County Council,Supplies and Services related expenditure,12/07/2021,10,Director of Children's Services and Education
Government Service,Govt Serv - Default,Hampshire County Counc,Supplies and Services related expenditure,12/07/2021,30.4,Director of Children's Services and Education
Other Supplies,Misc Speciality Retail,Zero Bounds,Supplies and Services related expenditure,12/07/2021,195,Director of Children's Services and Education
Business Expenses/Services,Stationery Stores,Lyreco UK Limited,Supplies and Services related expenditure,12/07/2021,375.9,Director of Children's Services and Education
Other Supplies,Discount Stores,Argos Ltd,Supplies and Services related expenditure,12/07/2021,190.83,Director of Children's Services and Education
Other Supplies,Gift/Card/Novelty And Souvenir Stores,Funkypigeon.Com,Supplies and Services related expenditure,12/07/2021,4.28,Director of Children's Services and Education
Personal Service Provider,Computer Program/Sys Design,Squarespace Inc.,Supplies and Services related expenditure,12/07/2021,14.88,Director of Children's Services and Education
Type of Retail Store,Grocery Stores/Supermarkets,Tesco Stores 4611,Supplies and Services related expenditure,12/07/2021,50,Director of Children's Services and Education
Type of Retail Store,Grocery Stores/Supermarkets,Asda Groceries Online,Supplies and Services related expenditure,12/07/2021,-0.06,Director of Children's Services and Education
Type of Retail Store,Grocery Stores/Supermarkets,Asda Groceries Online,Supplies and Services related expenditure,12/07/2021,90.8,Director of Children's Services and Education
Type of Retail Store,Grocery Stores/Supermarkets,Asda Groceries Online,Supplies and Services related expenditure,12/07/2021,13.75,Director of Children's Services and Education
Business To Business Eqpt/Furn,Stationery/Office Supplies,Www.Banneruk.Com,Supplies and Services related expenditure,12/07/2021,5.67,Director of Regeneration
Business To Business Eqpt/Furn,Stationery/Office Supplies,Www.Banneruk.Com,Supplies and Services related expenditure,12/07/2021,37.49,Director of Regeneration
Type of Retail Store,Pet Stores/Food & Supply,Peddymark,Supplies and Services related expenditure,12/07/2021,34.99,"Director of Housing, Neighbourhood and Building Services"
Transportation Conveyor,Travel Agencies,Lucketts Travel Lt,Supplies and Services related expenditure,12/07/2021,-110,Director of Adult Services
Transportation Conveyor,Passenger Railways,Swrailway Tck Off,Supplies and Services related expenditure,12/07/2021,23,Director of Children's Services and Education
Government Service,Govt Serv - Default,Hampshire County Counc,Supplies and Services related expenditure,12/07/2021,67.37,Director of Children's Services and Education
Type of Retail Store,Artist/Craft Shops,Baker Ross,Supplies and Services related expenditure,12/07/2021,177.13,Director of Children's Services and Education
Government Service,Govt Serv - Default,Hampshire County Counc,Supplies and Services related expenditure,12/07/2021,495.55,Director of Children's Services and Education
Business Services,Business Services - Default,Phs Group,Supplies and Services related expenditure,12/07/2021,-250,"Director of Housing, Neighbourhood and Building Services"
Type of Retail Store,Grocery Stores/Supermarkets,Tesco Store 3055,Supplies and Services related expenditure,12/07/2021,15.5,Director of Children's Services and Education
Type of Retail Store,Grocery Stores/Supermarkets,Tesco Store 3055,Supplies and Services related expenditure,12/07/2021,6,Director of Children's Services and Education
Type of Retail Store,Grocery Stores/Supermarkets,Tesco Store 3055,Supplies and Services related expenditure,12/07/2021,7.71,Director of Children's Services and Education
Type of Retail Store,Grocery Stores/Supermarkets,Tesco Store 3055,Supplies and Services related expenditure,12/07/2021,17.24,Director of Children's Services and Education
Government Service,Govt Serv - Default,Hampshire County Counc,Supplies and Services related expenditure,12/07/2021,103.03,Director of Children's Services and Education
Other Supplies,Misc Speciality Retail,Amznmktplace,Supplies and Services related expenditure,12/07/2021,39.04,Director of Children's Services and Education
Government Service,Govt Serv - Default,Portsmouth City Co,Transport related expenditure,12/07/2021,31.67,Director of Children's Services and Education
Type of Retail Store,Sporting Goods Stores,Portsmouth Cascade Sports,Supplies and Services related expenditure,12/07/2021,4.5,Director of Children's Services and Education
Type of Retail Store,Grocery Stores/Supermarkets,Tesco Store 3048,Supplies and Services related expenditure,12/07/2021,25,Director of Children's Services and Education
Type of Retail Store,Grocery Stores/Supermarkets,Tesco Store 3048,Supplies and Services related expenditure,12/07/2021,25,Director of Children's Services and Education
Transportation Conveyor,Local Commuter Transport,Www.Hovertravel.Com,Transport related expenditure,12/07/2021,50.2,Director of Children's Services and Education
Type of Retail Store,Grocery Stores/Supermarkets,Tesco Store 3048,Supplies and Services related expenditure,12/07/2021,70,Director of Children's Services and Education
Transportation Conveyor,Passenger Railways,Trainline,Transport related expenditure,12/07/2021,95.14,Director of Children's Services and Education
Business To Business Eqpt/Furn,Commercial Furniture,Www.Nationalofficefurnit,Supplies and Services related expenditure,12/07/2021,1992,Director of Portsmouth International Port
Type of Retail Store,Grocery Stores/Supermarkets,Lidl Gb Portsmouth,Supplies and Services related expenditure,12/07/2021,84.03,Director of Children's Services and Education
Type of Retail Store,Grocery Stores/Supermarkets,Lidl Gb Portsmouth,Premises related expenditure,12/07/2021,2.15,Director of Children's Services and Education
Type of Retail Store,Grocery Stores/Supermarkets,Farmfoods 750,Supplies and Services related expenditure,12/07/2021,20.83,Director of Children's Services and Education
Type of Retail Store,Grocery Stores/Supermarkets,Farmfoods 750,Supplies and Services related expenditure,12/07/2021,74.34,Director of Children's Services and Education
Business To Business Facility/,Industrial Supplies - Def,Pirtek Portsmouth,Transport related expenditure,12/07/2021,88.2,"Director of Culture, Leisure & Regulatory Services"
Government Service,Govt Serv - Default,Portsmouth City Co,Supplies and Services related expenditure,12/07/2021,63.33,Director of Adult Services
Other Supplies,Misc Speciality Retail,Amznmktplace,Supplies and Services related expenditure,12/07/2021,7.16,Director of Children's Services and Education
Type of Retail Store,Grocery Stores/Supermarkets,Lidl Gb Portsmouth,Supplies and Services related expenditure,12/07/2021,11.45,Director of Regeneration
Type of Retail Store,Grocery Stores/Supermarkets,Lidl Gb Portsmouth,Supplies and Services related expenditure,12/07/2021,2.67,Director of Regeneration
Transportation Conveyor,"Parking Lots, Meters, Garages",Lb Croydon Parking,Supplies and Services related expenditure,12/07/2021,2,Director of Children's Services and Education
Type of Retail Store,Grocery Stores/Supermarkets,Sainsburys S/Mkt,Supplies and Services related expenditure,12/07/2021,3.5,Director of Children's Services and Education
Eating And Drinking Places,Fast Food Restaurants,Costa Coffee,Supplies and Services related expenditure,12/07/2021,4.12,Director of Children's Services and Education
Transportation Conveyor,Passenger Railways,Swrailway Tck Off,Transport related expenditure,12/07/2021,53,Director of Children's Services and Education
Other Supplies,Misc Speciality Retail,Amznmktplace,Supplies and Services related expenditure,12/07/2021,30.82,Director of Children's Services and Education
Facilities/Repair Supplies,Home Supply Warehouse Stores,B & Q 1260,Supplies and Services related expenditure,12/07/2021,12.33,"Director of Housing, Neighbourhood and Building Services"
Facilities/Repair Supplies,Hardware Stores,Toolstation Uk,Premises related expenditure,12/07/2021,15.82,Director of Children's Services and Education
Facilities/Repair Supplies,Hardware Stores,Home Bargains,Supplies and Services related expenditure,12/07/2021,9.97,Director of Adult Services
Facilities/Repair Supplies,Hardware Stores,Home Bargains,Supplies and Services related expenditure,12/07/2021,2.67,Director of Adult Services
Type of Retail Store,Grocery Stores/Supermarkets,Tesco Store 3055,Supplies and Services related expenditure,12/07/2021,58.94,Director of Children's Services and Education
Type of Retail Store,Grocery Stores/Supermarkets,Tesco Store 3055,Supplies and Services related expenditure,12/07/2021,56.97,Director of Children's Services and Education
Business Expenses/Services,Books/Periodicals/Newspapers,Sp * Booklife-Publishi,Supplies and Services related expenditure,12/07/2021,280,Director of Children's Services and Education
Business Expenses/Services,Postage Stamps,Royal Mail Online Shop,Supplies and Services related expenditure,12/07/2021,387,Director of Children's Services and Education
Business Services,Business Services - Default,Phs Group,Premises related expenditure,12/07/2021,132.6,"Director of Housing, Neighbourhood and Building Services"
Transportation Conveyor,"Parking Lots, Meters, Garages",Www.Hxpayments.Com,Supplies and Services related expenditure,12/07/2021,27.99,Director of Children's Services and Education
Transportation Conveyor,Passenger Railways,Thetrainline.Com,Transport related expenditure,12/07/2021,75.92,Director of Children's Services and Education
Government Service,Govt Serv - Default,Pcc Moto Payment,Supplies and Services related expenditure,12/07/2021,407,"Director of Housing, Neighbourhood and Building Services"
Other Supplies,Misc Speciality Retail,Amznmktplace,Supplies and Services related expenditure,12/07/2021,14.49,Director of Children's Services and Education
Business Expenses/Services,Stationery Stores,Www.Tts-Groups.Co.Uk,Supplies and Services related expenditure,12/07/2021,125.87,Director of Children's Services and Education
Government Service,Business/Secretarial School,Paypal,Supplies and Services related expenditure,12/07/2021,43.7,"Director of Housing, Neighbourhood and Building Services"
Type of Retail Store,Candy/Nut/Confection Store,Krispy Kreme Portsmouth,Supplies and Services related expenditure,12/07/2021,4.24,Director of Children's Services and Education
Type of Retail Store,Artist/Craft Shops,Baker Ross,Supplies and Services related expenditure,12/07/2021,66.04,Director of Children's Services and Education
Business Services,Business Services - Default,Zebra Waste,Premises related expenditure,12/07/2021,187,Director of Adult Services
Eating And Drinking Places,Fast Food Restaurants,McDonald S Restaurant,Supplies and Services related expenditure,12/07/2021,5.41,Director of Children's Services and Education
Transportation Conveyor,Passenger Railways,Swrailwayselfserve,Supplies and Services related expenditure,12/07/2021,17,Director of Children's Services and Education
Business To Business Eqpt/Furn,Stationery/Office Supplies,Www.Banneruk.Com,Supplies and Services related expenditure,12/07/2021,8.69,Director of Corporate Services
Facilities/Repair Supplies,Home Supply Warehouse Stores,B & Q 1260,Premises related expenditure,12/07/2021,18.35,Director of Children's Services and Education
Type of Retail Store,Grocery Stores/Supermarkets,Asda Stores,Supplies and Services related expenditure,12/07/2021,6.99,Director of Children's Services and Education
Type of Retail Store,Grocery Stores/Supermarkets,Asda Stores,Supplies and Services related expenditure,12/07/2021,4.58,Director of Children's Services and Education
Clothing/Uniform Services,Laundry/Cleaning/Garment Sv,Impress Dry Cleaners,Supplies and Services related expenditure,12/07/2021,90.9,"Director of Culture, Leisure & Regulatory Services"
Business To Business Facility/,Electrical Parts/Equipment,Trafalgar Cleaning Equip,Supplies and Services related expenditure,12/07/2021,950,"Director of Housing, Neighbourhood and Building Services"
Business To Business Eqpt/Furn,Stationery/Office Supplies,Www.Banneruk.Com,Supplies and Services related expenditure,12/07/2021,1.98,Director of Children's Services and Education
Transportation Conveyor,"Parking Lots, Meters, Garages",Ncp Portsmouth Market Wa,Transport related expenditure,12/07/2021,2.25,Director of Children's Services and Education
Miscellaneous,Continuity/Subscription Mercht,Amazon Prime,Supplies and Services related expenditure,12/07/2021,-6.66,Director of Children's Services and Education
Type of Retail Store,Grocery Stores/Supermarkets,Tesco Store 3048,Agency and Third Party Payments related expenditure,12/07/2021,10,Director of Children's Services and Education
Eating And Drinking Places,Eating Places/Restaurants,Pizza Hut 797,Agency and Third Party Payments related expenditure,12/07/2021,36.62,Director of Children's Services and Education
Type of Retail Store,Grocery Stores/Supermarkets,Asda Groceries Online,Supplies and Services related expenditure,12/07/2021,-2,Director of Children's Services and Education
Medical,Lab/Med/Hospital Equipment,Www.Eurekadirect.Co.Uk,Supplies and Services related expenditure,12/07/2021,24.9,Director of Children's Services and Education
Type of Retail Store,Grocery Stores/Supermarkets,Asda Groceries Online,Supplies and Services related expenditure,12/07/2021,26.8,Director of Children's Services and Education
Type of Retail Store,Grocery Stores/Supermarkets,Asda Groceries Online,Supplies and Services related expenditure,12/07/2021,43.72,Director of Children's Services and Education
Government Service,Correspondence Schools,White Rose Maths,Supplies and Services related expenditure,12/07/2021,120,Director of Children's Services and Education
Business To Business Facility/,Industrial Supplies - Def,Www.Arco.Co.Uk,Supplies and Services related expenditure,12/07/2021,102.78,Director of Corporate Services
Personal Service Provider,Computer Program/Sys Design,Www.Printerland.Co,Supplies and Services related expenditure,12/07/2021,379.38,"Director of Culture, Leisure & Regulatory Services"
Personal Service Provider,Computer Program/Sys Design,Www.Printerland.Co,Supplies and Services related expenditure,12/07/2021,379.38,"Director of Culture, Leisure & Regulatory Services"
Business To Business Eqpt/Furn,Stationery/Office Supplies,Www.Banneruk.Com,Supplies and Services related expenditure,12/07/2021,1018.4,Director of Corporate Services
Other Supplies,Misc Gen Merchandise - Def,B&m Retail Ltd,Supplies and Services related expenditure,12/07/2021,15.82,"Director of Housing, Neighbourhood and Building Services"
Business To Business Facility/,Industrial Supplies - Def,Arco Limited (Ahpp),Supplies and Services related expenditure,06/07/2021,10.44,"Director of Housing, Neighbourhood and Building Services"
Transportation Conveyor,"Parking Lots, Meters, Garages",Ncp Portsmouth.,Supplies and Services related expenditure,09/07/2021,3.5,Director of Regeneration
Personal Service Provider,Mgmt/Consult/Public Rel Ser,Tvlicensing.Co.Uk,Supplies and Services related expenditure,12/07/2021,159,"Director of Housing, Neighbourhood and Building Services"
Personal Service Provider,Mgmt/Consult/Public Rel Ser,Tvlicensing.Co.Uk,Supplies and Services related expenditure,12/07/2021,159,"Director of Housing, Neighbourhood and Building Services"
Government Service,Govt Serv - Default,Portsmouth Water T/t,Supplies and Services related expenditure,12/07/2021,13.65,Director of Children's Services and Education
Type of Retail Store,Music Stores/Pianos,Gear4music,Supplies and Services related expenditure,12/07/2021,98.07,"Director of Culture, Leisure & Regulatory Services"
Clothing Services,Family Clothing Stores,Primark,Supplies and Services related expenditure,12/07/2021,5,Director of Children's Services and Education
Facilities/Repair Supplies,Home Supply Warehouse Stores,B & Q 1260,Supplies and Services related expenditure,13/07/2021,10,Director of Adult Services
Medical,Lab/Med/Hospital Equipment,Wightman & Parrish,Premises related expenditure,13/07/2021,102.4,"Director of Housing, Neighbourhood and Building Services"
Freight/Courier/Warehouse Svcs,Public Warehousing,Big Yellow - Portsmout,Premises related expenditure,13/07/2021,34,"Director of Housing, Neighbourhood and Building Services"
Freight/Courier/Warehouse Svcs,Public Warehousing,Big Yellow - Portsmout,Premises related expenditure,13/07/2021,436,"Director of Housing, Neighbourhood and Building Services"
Business To Business Facility/,Industrial Supplies - Def,Arco Limited (Sap),Supplies and Services related expenditure,13/07/2021,10.88,"Director of Housing, Neighbourhood and Building Services"
Business To Business Facility/,Industrial Supplies - Def,Arco Limited (Sap),Supplies and Services related expenditure,13/07/2021,36.16,"Director of Housing, Neighbourhood and Building Services"
Business To Business Facility/,Industrial Supplies - Def,Arco Limited (Sap),Supplies and Services related expenditure,13/07/2021,41.41,"Director of Housing, Neighbourhood and Building Services"
Medical,Lab/Med/Hospital Equipment,Wightman & Parrish Ltd,Premises related expenditure,13/07/2021,124,"Director of Housing, Neighbourhood and Building Services"
Medical,Lab/Med/Hospital Equipment,Wightman & Parrish Ltd,Premises related expenditure,13/07/2021,478.45,"Director of Housing, Neighbourhood and Building Services"
Business To Business Eqpt/Furn,Stationery/Office Supplies,Www.Banneruk.Com,Supplies and Services related expenditure,13/07/2021,7.14,Director of Finance & Resources
Eating And Drinking Places,Fast Food Restaurants,Kfc Stoke-On-Trent,Supplies and Services related expenditure,13/07/2021,6.69,Director of Children's Services and Education
Auto/Vehicle Expenses,Toll And Bridge Fees,M6 Toll,Transport related expenditure,13/07/2021,5.83,Director of Children's Services and Education
Miscellaneous,Other Direct Marketers,Findel Education,Supplies and Services related expenditure,13/07/2021,220,Director of Children's Services and Education
Other Supplies,Department Stores,Southern Co-Op 0008,Supplies and Services related expenditure,13/07/2021,2.04,Director of Children's Services and Education
Other Supplies,Department Stores,Southern Co-Op 0008,Premises related expenditure,13/07/2021,33.33,Director of Children's Services and Education
Business To Business Other Sup,Precious Stones/Metals/Jewelry,Challenge Coins UK Ltd,Supplies and Services related expenditure,13/07/2021,500,Director of Portsmouth International Port
Business To Business Eqpt/Furn,Computers/Peripherals/Software,Hotjar,Supplies and Services related expenditure,13/07/2021,34.37,Director of Corporate Services
Facilities/Repair Supplies,Hardware Stores,Toolstation Uk,Premises related expenditure,13/07/2021,49.93,Director of Children's Services and Education
Other Supplies,Misc Speciality Retail,Amznmktplace,Supplies and Services related expenditure,13/07/2021,12.57,Director of Children's Services and Education
Equipment And Furniture,Household Appliance Stores,South Coast Appliances,Supplies and Services related expenditure,13/07/2021,681.67,Director of Children's Services and Education
Other Supplies,Misc Speciality Retail,Amznmktplace,Supplies and Services related expenditure,13/07/2021,6.16,Director of Children's Services and Education
Miscellaneous,Other Direct Marketers,Amazon.Co.Uk,Supplies and Services related expenditure,13/07/2021,14.96,Director of Children's Services and Education
Other Supplies,Misc Speciality Retail,Amznmktplace,Supplies and Services related expenditure,13/07/2021,20.82,Director of Children's Services and Education
Type of Retail Store,Grocery Stores/Supermarkets,Asda Groceries Online,Supplies and Services related expenditure,13/07/2021,84.28,Director of Children's Services and Education
Type of Retail Store,Grocery Stores/Supermarkets,Asda Groceries Online,Supplies and Services related expenditure,13/07/2021,-88.89,Director of Children's Services and Education
Facilities/Repair Supplies,Swimming Pools/Sales/Serv,Commerciall,Supplies and Services related expenditure,13/07/2021,179,"Director of Culture, Leisure & Regulatory Services"
Automobile Services & Supplies,Service Stations,Shell Fratton 178,Supplies and Services related expenditure,13/07/2021,38.47,Director of Regeneration
Other Supplies,Misc Speciality Retail,Amznmktplace,Supplies and Services related expenditure,13/07/2021,379.49,Director of Children's Services and Education
Type of Retail Store,Grocery Stores/Supermarkets,Tesco Stores 4579,Agency and Third Party Payments related expenditure,13/07/2021,20,Director of Children's Services and Education
Type of Retail Store,Grocery Stores/Supermarkets,Tesco Stores 4579,Supplies and Services related expenditure,13/07/2021,2.78,Director of Children's Services and Education
Type of Retail Store,Grocery Stores/Supermarkets,Tesco Stores 4579,Supplies and Services related expenditure,13/07/2021,17.08,Director of Children's Services and Education
Other Supplies,Misc Speciality Retail,Amznmktplace,Supplies and Services related expenditure,13/07/2021,35.53,Director of Children's Services and Education
Government Service,Schools - Default,Classroom Capers,Supplies and Services related expenditure,13/07/2021,37.5,Director of Children's Services and Education
Business To Business Eqpt/Furn,Computers/Peripherals/Software,Stinkyink,Supplies and Services related expenditure,13/07/2021,94.97,Director of Children's Services and Education
Type of Retail Store,Sporting Goods Stores,J D Sports Fashion Plc,Supplies and Services related expenditure,13/07/2021,50,Director of Children's Services and Education
Business Services,Business Services - Default,Eb *mec Seminar Music,Supplies and Services related expenditure,13/07/2021,6,Director of Children's Services and Education
Government Service,Govt Serv - Default,Hampshire County Council,Premises related expenditure,13/07/2021,75,Director of Children's Services and Education
Other Supplies,Gift/Card/Novelty And Souvenir Stores,Www.Weprintlanyards.Co,Supplies and Services related expenditure,13/07/2021,456.68,"Director of Housing, Neighbourhood and Building Services"
Type of Retail Store,Grocery Stores/Supermarkets,Tesco Stores 2322,Supplies and Services related expenditure,13/07/2021,9.69,Director of Children's Services and Education
Hotels And Motels,Lodging/Hotels/Motels/Resorts,Hotel At Booking.Com,Supplies and Services related expenditure,13/07/2021,24.11,Director of Regeneration
Business To Business Eqpt/Furn,Stationery/Office Supplies,Www.Banneruk.Com,Supplies and Services related expenditure,13/07/2021,16.23,"Director of Housing, Neighbourhood and Building Services"
Type of Retail Store,Grocery Stores/Supermarkets,Tesco Store 3048,Supplies and Services related expenditure,13/07/2021,8.33,Director of Children's Services and Education
Auto/Vehicle Expenses,Automotive Tire Stores,Portsmouth - Protyre,Transport related expenditure,13/07/2021,123.33,"Director of Housing, Neighbourhood and Building Services"
Business To Business Eqpt/Furn,Stationery/Office Supplies,Www.Banneruk.Com,Supplies and Services related expenditure,13/07/2021,19.82,Director of Children's Services and Education
Other Supplies,Misc Speciality Retail,Amznmktplace,Supplies and Services related expenditure,13/07/2021,110.61,Director of Children's Services and Education
Type of Retail Store,Grocery Stores/Supermarkets,Tesco Stores 5153,Supplies and Services related expenditure,13/07/2021,6.57,Director of Children's Services and Education
Type of Retail Store,Grocery Stores/Supermarkets,Lidl Gb Portsmouth,Supplies and Services related expenditure,13/07/2021,12.9,Director of Children's Services and Education
Business Expenses/Services,Postage Stamps,Post Office Counter,Supplies and Services related expenditure,13/07/2021,10,Director of Children's Services and Education
Business Expenses/Services,Postage Stamps,Post Office Counter,Supplies and Services related expenditure,13/07/2021,100,Director of Children's Services and Education
Business Expenses/Services,Postage Stamps,Post Office Counter,Supplies and Services related expenditure,13/07/2021,100,Director of Children's Services and Education
Business To Business Other Sup,Uniforms & Commercial Clothing,Miller-Rayner Worl,Supplies and Services related expenditure,13/07/2021,65.83,Director of Portsmouth International Port
Facilities/Repair Services,Spec Contractors - Default,Www.Ciaalarms.Co.Uk,Premises related expenditure,13/07/2021,68,Director of Portsmouth International Port
Business To Business Other Sup,Uniforms & Commercial Clothing,Seasafe Systems,Supplies and Services related expenditure,13/07/2021,93.65,Director of Portsmouth International Port
Other Supplies,Misc Speciality Retail,Amznmktplace,Supplies and Services related expenditure,13/07/2021,114.86,Director of Portsmouth International Port
Utility,Utilities/Elec/Gas/H2O/Sani,Slicker Recycling,Premises related expenditure,13/07/2021,200,Director of Portsmouth International Port
Government Service,Govt Serv - Default,Mmo,Capital related expenditure,13/07/2021,640.5,Capital - Leader - Port
Type of Retail Store,Grocery Stores/Supermarkets,Sainsburys S/mkts,Supplies and Services related expenditure,13/07/2021,6.25,"Director of Culture, Leisure & Regulatory Services"
Miscellaneous,Charitable/Soc Service Orgs,Ifa,Supplies and Services related expenditure,13/07/2021,130,Director of Adult Services
Auto/Vehicle Expenses,Tire Retread/Repair Shops,Setyres,Transport related expenditure,13/07/2021,78.7,"Director of Culture, Leisure & Regulatory Services"
Transportation Conveyor,"Parking Lots, Meters, Garages",L B Merton Parking,Transport related expenditure,13/07/2021,1.25,Director of Children's Services and Education
Business Expenses/Services,Postage Stamps,Post Office Counter,Supplies and Services related expenditure,13/07/2021,5.5,Director of Children's Services and Education
Business To Business Facility/,Plumbing/Heating Equipment,Pps (Southsea),Premises related expenditure,13/07/2021,2.36,Director of Adult Services
Type of Retail Store,Drug Stores & Pharmacies,Rowlands Pharmacy,Supplies and Services related expenditure,13/07/2021,7.46,Director of Children's Services and Education
Type of Retail Store,Drug Stores & Pharmacies,Rowlands Pharmacy,Supplies and Services related expenditure,13/07/2021,0.03,Director of Children's Services and Education
Facilities/Repair Services,Spec Contractors - Default,Trophystore.Co.Uk Limited,Supplies and Services related expenditure,13/07/2021,20.49,Director of Children's Services and Education
Business To Business Eqpt/Furn,Computer Software Stores,Sabre Sports,Supplies and Services related expenditure,13/07/2021,46.98,Director of Children's Services and Education
Other Supplies,Misc Speciality Retail,Amznmktplace,Supplies and Services related expenditure,13/07/2021,54.95,Director of Children's Services and Education
Equipment And Furniture,Phone Serv/Equip Non-Util,Www.Gadgets-Galore.Co.Uk,Supplies and Services related expenditure,13/07/2021,66.39,Director of Children's Services and Education
Miscellaneous,Other Direct Marketers,Amazon.Co.Uk,Supplies and Services related expenditure,13/07/2021,120.89,Director of Children's Services and Education
Type of Retail Store,Grocery Stores/Supermarkets,Lidl Gb Portsmouth,Supplies and Services related expenditure,13/07/2021,0.65,"Director of Housing, Neighbourhood and Building Services"
Type of Retail Store,Grocery Stores/Supermarkets,Lidl Gb Portsmouth,Supplies and Services related expenditure,13/07/2021,4.36,"Director of Housing, Neighbourhood and Building Services"
Facilities/Repair Supplies,Misc Home Furnishing,The Range,Supplies and Services related expenditure,13/07/2021,4.08,"Director of Housing, Neighbourhood and Building Services"
Type of Retail Store,Grocery Stores/Supermarkets,Tesco Stores 2322,Supplies and Services related expenditure,13/07/2021,6.44,"Director of Housing, Neighbourhood and Building Services"
Type of Retail Store,Grocery Stores/Supermarkets,Lidl Gb,Supplies and Services related expenditure,13/07/2021,63.72,"Director of Housing, Neighbourhood and Building Services"
Business To Business Eqpt/Furn,Book Stores,Scholastic Ltd,Supplies and Services related expenditure,13/07/2021,30,Director of Children's Services and Education
Business To Business Eqpt/Furn,Book Stores,Scholastic Ltd,Supplies and Services related expenditure,13/07/2021,30,Director of Children's Services and Education
Eating And Drinking Places,Fast Food Restaurants,Kfc Stoke-On-Trent,Supplies and Services related expenditure,13/07/2021,6.49,Director of Children's Services and Education
Type of Retail Store,Fabric Stores,Hampshirefl,Supplies and Services related expenditure,13/07/2021,197.63,"Director of Culture, Leisure & Regulatory Services"
Transportation Conveyor,Passenger Railways,Swrailwayselfserve,Transport related expenditure,13/07/2021,12.6,Director of Children's Services and Education
Miscellaneous,Other Direct Marketers,Amazon.Co.Uk,Supplies and Services related expenditure,13/07/2021,14.01,Director of Children's Services and Education
Business To Business Eqpt/Furn,Stationery/Office Supplies,Www.Banneruk.Com,Supplies and Services related expenditure,13/07/2021,11.43,"Director of Housing, Neighbourhood and Building Services"
Type of Retail Store,Sports/Riding Apparel Store,Go Outdoors Retail Limite,Supplies and Services related expenditure,13/07/2021,180,"Director of Housing, Neighbourhood and Building Services"
Other Supplies,Misc Speciality Retail,Amznbusiness Amazon.Co.Uk,Supplies and Services related expenditure,13/07/2021,-324.17,Director of Corporate Services
Other Supplies,Camera & Photo Supply Store,Wex Photographic,Supplies and Services related expenditure,13/07/2021,328.32,Director of Corporate Services
Utility,Phone Serv/Equip Utility,Zoom.Us 888-799-9666,Supplies and Services related expenditure,13/07/2021,11.99,Director of Public Health
Other Supplies,Misc Speciality Retail,Firstaid4less.Co.Uk,Supplies and Services related expenditure,13/07/2021,58.7,Director of Children's Services and Education
Facilities/Repair Supplies,Lawn/Garden Supply/Nursery,Carters Of Swanwic,Supplies and Services related expenditure,13/07/2021,75.18,"Director of Housing, Neighbourhood and Building Services"
Business To Business Eqpt/Furn,Stationery/Office Supplies,Www.Banneruk.Com,Supplies and Services related expenditure,13/07/2021,2.44,Director of Children's Services and Education
Business To Business Eqpt/Furn,Stationery/Office Supplies,Www.Banneruk.Com,Supplies and Services related expenditure,13/07/2021,34.94,Director of Children's Services and Education
Other Supplies,Misc Speciality Retail,Sumup *southern Catering,Supplies and Services related expenditure,13/07/2021,150,"Director of Culture, Leisure & Regulatory Services"
Business Expenses/Services,Florist Supplies/Nursery Stock,Palmstead Nurseries Lt,Capital related expenditure,13/07/2021,8701.7,Capital - Housing RA
Business To Business Facility/,Industrial Supplies - Def,Arco Limited (Sap),Supplies and Services related expenditure,13/07/2021,165.66,"Director of Housing, Neighbourhood and Building Services"
Type of Retail Store,Grocery Stores/Supermarkets,Tesco Stores 4579,Supplies and Services related expenditure,13/07/2021,10.69,Director of Adult Services
Type of Retail Store,Grocery Stores/Supermarkets,Tesco Stores 4579,Supplies and Services related expenditure,13/07/2021,19.16,Director of Adult Services
Type of Retail Store,Electronics Sales,Currys Pc World,Supplies and Services related expenditure,13/07/2021,53.31,Director of Adult Services
Business To Business Eqpt/Furn,Book Stores,Www.Jctltd.Co.Uk,Supplies and Services related expenditure,13/07/2021,70.67,"Director of Housing, Neighbourhood and Building Services"
Facilities/Repair Supplies,Hardware Stores,Toolstation Uk,Supplies and Services related expenditure,13/07/2021,27.49,"Director of Housing, Neighbourhood and Building Services"
Facilities/Repair Supplies,Home Supply Warehouse Stores,B & Q 1260,Supplies and Services related expenditure,13/07/2021,22.64,Director of Adult Services
Facilities/Repair Supplies,Lumber/Build. Supply Stores,Selco Trading Ctr,Supplies and Services related expenditure,13/07/2021,335,Director of Adult Services
Utility,Utilities/Elec/Gas/H2O/Sani,Express Gas Centre,Supplies and Services related expenditure,13/07/2021,35,"Director of Housing, Neighbourhood and Building Services"
Medical,Lab/Med/Hospital Equipment,Wightman & Parrish,Premises related expenditure,13/07/2021,105,"Director of Housing, Neighbourhood and Building Services"
Type of Retail Store,Grocery Stores/Supermarkets,Tesco Stores 4611,Supplies and Services related expenditure,13/07/2021,20,Director of Children's Services and Education
Transportation Conveyor,Local Commuter Transport,Www.Hovertravel.Com,Transport related expenditure,13/07/2021,25.1,Director of Children's Services and Education
Eating And Drinking Places,Fast Food Restaurants,Pasty Shop,Supplies and Services related expenditure,13/07/2021,3.24,Director of Children's Services and Education
Transportation Conveyor,Passenger Railways,Lne Railway Ncl Ots,Supplies and Services related expenditure,13/07/2021,99.25,Director of Children's Services and Education
Transportation Conveyor,Passenger Railways,Swrailwayselfserve,Supplies and Services related expenditure,13/07/2021,142,Director of Children's Services and Education
Type of Retail Store,Grocery Stores/Supermarkets,Www.Iceland.Co.Uk,Supplies and Services related expenditure,13/07/2021,45.5,Director of Children's Services and Education
Business To Business Eqpt/Furn,Computer Software Stores,Derwent Laser Crafts,Supplies and Services related expenditure,13/07/2021,2.46,Director of Adult Services
Other Supplies,Department Stores,Southern Co-Op 0024,Supplies and Services related expenditure,13/07/2021,2.8,Director of Children's Services and Education
Type of Retail Store,Grocery Stores/Supermarkets,Tesco Store 3048,Premises related expenditure,13/07/2021,8.5,"Director of Culture, Leisure & Regulatory Services"
Other Supplies,Discount Stores,Theworks,Supplies and Services related expenditure,13/07/2021,11.43,Director of Children's Services and Education
Type of Retail Store,Grocery Stores/Supermarkets,Tesco Store 3048,Supplies and Services related expenditure,13/07/2021,13.25,Director of Children's Services and Education
Other Supplies,Misc Gen Merchandise - Def,Wilko Retail Limited,Supplies and Services related expenditure,13/07/2021,15.42,Director of Children's Services and Education
Type of Retail Store,Grocery Stores/Supermarkets,Tesco Stores 4579,Supplies and Services related expenditure,13/07/2021,55.75,"Director of Culture, Leisure & Regulatory Services"
Business To Business Eqpt/Furn,Stationery/Office Supplies,Www.Banneruk.Com,Supplies and Services related expenditure,13/07/2021,76.37,"Director of Culture, Leisure & Regulatory Services"
Business To Business Eqpt/Furn,Stationery/Office Supplies,Www.Banneruk.Com,Supplies and Services related expenditure,13/07/2021,86.8,"Director of Culture, Leisure & Regulatory Services"
Business To Business Eqpt/Furn,Stationery/Office Supplies,Www.Banneruk.Com,Supplies and Services related expenditure,13/07/2021,5.51,"Director of Housing, Neighbourhood and Building Services"
Type of Retail Store,Sporting Goods Stores,Sportsdirect 363,Supplies and Services related expenditure,13/07/2021,14.25,Director of Children's Services and Education
Type of Retail Store,Artist/Craft Shops,Hobbycraft,Supplies and Services related expenditure,13/07/2021,63.33,Director of Children's Services and Education
Business To Business Eqpt/Furn,Stationery/Office Supplies,Viking Uk,Premises related expenditure,13/07/2021,36.98,Director of Children's Services and Education
Business To Business Eqpt/Furn,Computer Software Stores,Schoolstickers.Com,Supplies and Services related expenditure,13/07/2021,169.5,Director of Children's Services and Education
Business Services,Business Services - Default,Cisco Systems,Supplies and Services related expenditure,13/07/2021,68.53,Director of Corporate Services
Business Services,Business Services - Default,Cisco Systems,Supplies and Services related expenditure,13/07/2021,68.52,"Director of Culture, Leisure & Regulatory Services"
Other Supplies,Misc Speciality Retail,Paypal,Supplies and Services related expenditure,13/07/2021,375,Director of Children's Services and Education
Business To Business Facility/,Industrial Supplies - Def,Arco Limited (Sap),Supplies and Services related expenditure,06/07/2021,43.28,Director of Adult Services
Business To Business Facility/,Industrial Supplies - Def,Arco Limited (Sap),Supplies and Services related expenditure,07/07/2021,10.82,Director of Adult Services
Business To Business Facility/,Industrial Supplies - Def,Arco Limited (Ahpp),Supplies and Services related expenditure,08/07/2021,17.94,"Director of Culture, Leisure & Regulatory Services"
Business To Business Facility/,Industrial Supplies - Def,Arco Limited (Ahpp),Supplies and Services related expenditure,11/07/2021,10.44,"Director of Housing, Neighbourhood and Building Services"
Facilities/Repair Supplies,Home Supply Warehouse Stores,B & Q 1260,Supplies and Services related expenditure,12/07/2021,60.95,Director of Adult Services
Type of Retail Store,Misc Food Stores - Default,Starbucks Weston On Green,Supplies and Services related expenditure,13/07/2021,3.7,Director of Children's Services and Education
Business Expenses/Services,Stationery Stores,Seawhite Of Bright,Supplies and Services related expenditure,13/07/2021,64.75,Director of Children's Services and Education
Other Supplies,Misc Speciality Retail,Amznmktplace Amazon.Co.Uk,Supplies and Services related expenditure,13/07/2021,1205.7,Director of Children's Services and Education
Type of Retail Store,Electronics Sales,Sfl Mobile Radio Limited,Supplies and Services related expenditure,13/07/2021,19.45,Director of Children's Services and Education
Hotels And Motels,Lodging/Hotels/Motels/Resorts,Booking.Com Bv,Supplies and Services related expenditure,13/07/2021,55.08,Director of Children's Services and Education
Type of Retail Store,Misc Food Stores - Default,Starbucks Weston On Green,Supplies and Services related expenditure,13/07/2021,3.5,Director of Children's Services and Education
Caterers Food,Caterers,Booker Limited Portsmouth,Supplies and Services related expenditure,13/07/2021,410.81,Director of Children's Services and Education
Eating And Drinking Places,Eating Places/Restaurants,Iz *the York Roast Co,Supplies and Services related expenditure,13/07/2021,6.67,Director of Children's Services and Education
Medical,Lab/Med/Hospital Equipment,Wightman & Parrish,Premises related expenditure,14/07/2021,79.15,"Director of Housing, Neighbourhood and Building Services"
Medical,Lab/Med/Hospital Equipment,Wightman & Parrish,Premises related expenditure,14/07/2021,633.5,"Director of Housing, Neighbourhood and Building Services"
Medical,Lab/Med/Hospital Equipment,Wightman & Parrish,Premises related expenditure,14/07/2021,775.5,"Director of Housing, Neighbourhood and Building Services"
Auto/Vehicle Expenses,Toll And Bridge Fees,Dart-Charge,Supplies and Services related expenditure,14/07/2021,2.5,Director of Children's Services and Education
Transportation Conveyor,"Parking Lots, Meters, Garages",Ringgo Parking,Supplies and Services related expenditure,14/07/2021,2.58,Director of Portsmouth International Port
Facilities/Repair Supplies,Hardware Stores,Www.Derbyshiredoorhand,Premises related expenditure,14/07/2021,35.22,Director of Children's Services and Education
Other Supplies,Misc Speciality Retail,Amznmktplace,Supplies and Services related expenditure,14/07/2021,9.98,Director of Children's Services and Education
Type of Retail Store,Grocery Stores/Supermarkets,Asda Stores,Supplies and Services related expenditure,14/07/2021,4.16,Director of Children's Services and Education
Other Supplies,Misc Speciality Retail,Amznmktplace,Supplies and Services related expenditure,14/07/2021,45.82,Director of Children's Services and Education
Other Supplies,Misc Speciality Retail,Amznmktplace Amazon.Co.Uk,Supplies and Services related expenditure,14/07/2021,116.66,Director of Children's Services and Education
Government Service,Vocational/Trade Schools,Www.Rta-Training.Co.Uk,Employees related expenditure,14/07/2021,249.99,Director of Adult Services
Hotels And Motels,Travelodge,Travelodge Gb0000,Supplies and Services related expenditure,14/07/2021,17.14,"Director of Culture, Leisure & Regulatory Services"
Business Services,Business Services - Default,Post Boxes UK Limited,Capital related expenditure,14/07/2021,340,"Capital - Health, Wellbeing & Social Care"
Government Service,Vocational/Trade Schools,The Commission For Local,Employees related expenditure,14/07/2021,45,Director of Corporate Services
Facilities/Repair Supplies,Misc Home Furnishing,The Range,Premises related expenditure,14/07/2021,25.98,Director of Children's Services and Education
Automobile Rental,Motor Home/Rv Rentals,Southsea Leisure Park,Agency and Third Party Payments related expenditure,14/07/2021,1166.67,"Director of Housing, Neighbourhood and Building Services"
Automobile Rental,Motor Home/Rv Rentals,Southsea Leisure Park,Agency and Third Party Payments related expenditure,14/07/2021,315,"Director of Housing, Neighbourhood and Building Services"
Facilities/Repair Supplies,Lumber/Build. Supply Stores,Screwfix Direct,Supplies and Services related expenditure,14/07/2021,44.12,"Director of Housing, Neighbourhood and Building Services"
Type of Retail Store,Grocery Stores/Supermarkets,Lidl Gb Gosport,Supplies and Services related expenditure,14/07/2021,8.26,Director of Children's Services and Education
Type of Retail Store,Grocery Stores/Supermarkets,Iceland,Supplies and Services related expenditure,14/07/2021,22.5,Director of Children's Services and Education
Facilities/Repair Supplies,Hardware Stores,Home Bargains,Supplies and Services related expenditure,14/07/2021,4.25,Director of Children's Services and Education
Facilities/Repair Supplies,Hardware Stores,Home Bargains,Supplies and Services related expenditure,14/07/2021,19.18,Director of Children's Services and Education
Other Supplies,Misc Gen Merchandise - Def,Wilko Retail Limited,Supplies and Services related expenditure,14/07/2021,7,Director of Children's Services and Education
Business To Business Services,Misc Publishing & Printing,Www.Solopress.Com,Supplies and Services related expenditure,14/07/2021,30.89,"Director of Culture, Leisure & Regulatory Services"
Other Supplies,Misc Speciality Retail,Timpson Ltd,Premises related expenditure,14/07/2021,23.33,Director of Regeneration
